Workbook

Sheet data
A1: month | B1: # residential homes sold EC | C1: $ residential homes sold EC | D1: average $ residential homes sold EC | E1: median $ residential homes EC | F1: average days on market EC | G1: Real $ residential homes sold EC | H1: ec_avg_rp_r96 | I1: ec_med_rp_r96 | J1: # of residential homes sold CH | K1: $ residential homes sold CH | L1: average $ residential homes sold CH | M1: median $ residential homes sold CH | N1: average days on market CH | O1: ch_vrps_r96 | P1: ch_avg_rp_r96 | Q1: ch_med_rp_r96 | R1: # residential homes sold EC-MSA | S1: Value homes sold EC-MSA | T1: average $ of residential homes sold ED-MSA | U1: median $ residential homes sold EC-MSA | V1: average days on market EC-MSA | W1: EC value weight | X1: CH value weight | Y1: ecch_vrps_r96 | Z1: ecch_avg_rp_r96 | AA1: ecch_med_rp_r96 | AB1: mw_u_cpi | AC1: mw_u_cpi_96 | AD1: base: 1996=100
A2: 1999-01-01
A3: 1999-02-01
A4: 1999-03-01
A5: 1999-04-01
A6: 1999-05-01
A7: 1999-06-01
A8: 1999-07-01
A9: 1999-08-01
A10: 1999-09-01
A11: 1999-10-01
A12: 1999-11-01
A13: 1999-12-01
A14: 2000-01-01 | B14: 35 | C14: 4320677 | D14: 123447 | E14: 119900 | F14: 48 | G14: =(C14/AC14)*100 -> 4008657.219 | H14: =(D14/AC14)*100 -> 114532.2151 | I14: =(E14/AC14)*100 -> 111241.3635 | J14: 23 | K14: 2004140 | L14: 87136 | M14: 85000 | N14: 85 | O14: =(K14/AC14)*100 -> 1859410.06 | P14: =(L14/AC14)*100 -> 80843.43157 | Q14: =(M14/AC14)*100 -> 78861.68385 | R14: =B14+J14 -> 58 | S14: =C14+K14 -> 6324817 | T14: =W14*D14+X14*L14 -> 111941.1608 | U14: =W14*E14+X14*M14 -> 108841.2633 | V14: =W14*F14+X14*N14 -> 59.72416214 | W14: =C14/(C14+K14) -> 0.683130753 | X14: =(1-W14) -> 0.316869247 | Y14: =(S14/AC14)*100 -> 5868067.278 | Z14: =(T14/AC14)*100 -> 103857.2757 | AA14: =(U14/AC14)*100 -> 100981.2388 | AB14: 164.9 | AC14: =(AB14/$AD$14)*100 -> 107.7836483 | AD14: 152.9916667
A15: 2000-02-01 | B15: 47 | C15: 5154020 | D15: 109660 | E15: 89900 | F15: 107 | G15: 4752996.443 | H15: 101127.5839 | I15: 82905.06831 | J15: 13 | K15: 982250 | L15: 75557 | M15: 66900 | N15: 61 | O15: 905823.1741 | P15: 69678.06726 | Q15: 61694.65039 | R15: 60 | S15: 6136270 | T15: 104201.0369 | U15: 86218.3253 | V15: 99.6366506 | W15: 0.839927187 | X15: =(1-W15) -> 0.160072813 | Y15: 5658819.617 | Z15: 96093.37129 | AA15: 79509.85705 | AB15: 165.9 | AC15: =(AB15/$AD$14)*100 -> 108.4372787
A16: 2000-03-01 | B16: 93 | C16: 9572850 | D16: 102933 | E16: 97200 | F16: 72 | G16: 8764609.672 | H16: 94242.31732 | I16: 88993.35727 | J16: 27 | K16: 2446600 | L16: 90614 | M16: 81000 | N16: 72 | O16: 2240032.386 | P16: 82963.41642 | Q16: 74161.13106 | R16: 120 | S16: 12019450 | T16: 100425.4256 | U16: 93902.4348 | V16: 72 | W16: 0.7964465928 | X16: 0.2035534072 | Y16: 11004642.06 | Z16: 91946.45862 | AA16: 85974.20709 | AB16: 167.1 | AC16: 109.2216352
A17: 2000-04-01 | B17: 75 | C17: 8221713 | D17: 109622 | E17: 95000 | F17: 67 | G17: 7532057.334 | H17: 100426.6616 | I17: 87031.18762 | J17: 37 | K17: 3527150 | L17: 95328 | M17: 84000 | N17: 84 | O17: 3231284.773 | P17: 87331.67425 | Q17: 76953.89222 | R17: 112 | S17: 11748863 | T17: 105330.7693 | U17: 91697.66768 | V17: 72.10360449 | W17: 0.699787971 | X17: 0.300212029 | Y17: 10763342.11 | Z17: 96495.38886 | AA17: 84005.86232 | AB17: 167 | AC17: 109.1562721
A18: 2000-05-01 | B18: 121 | C18: 13848931 | D18: 114453 | E18: 98000 | F18: 54 | G18: 12649379.31 | H18: 104539.4342 | I18: 89511.54229 | J18: 44 | K18: 4895500 | L18: 111261 | M18: 110000 | N18: 82 | O18: 4471466.891 | P18: 101623.9154 | Q18: 100472.1393 | R18: 165 | S18: 18744431 | T18: 113619.3425 | U18: 101134.0509 | V18: 61.31278533 | W18: 0.7388290954 | X18: 0.2611709046 | Y18: 17120846.21 | Z18: 103777.9855 | AA18: 92374.13133 | AB18: 167.5 | AC18: 109.4830873
A19: 2000-06-01 | B19: 143 | C19: 18461345 | D19: 129100 | E19: 119900 | F19: 55 | G19: 16643676.73 | H19: 116389.064 | I19: 108094.8782 | J19: 46 | K19: 4750700 | L19: 103276 | M19: 93250 | N19: 79 | O19: 4282955.279 | P19: 93107.64506 | Q19: 84068.7856 | R19: 189 | S19: 23212045 | T19: 123814.7235 | U19: 114445.6699 | V19: 59.91196704 | W19: 0.7953347066 | X19: 0.2046652934 | Y19: 20926632.01 | Z19: 111624.1656 | AA19: 103177.5709 | AB19: 169.7 | AC19: 110.9210741
A20: 2000-07-01 | B20: 99 | C20: 12860803 | D20: 129907 | E20: 124500 | F20: 41 | G20: 11656372.55 | H20: 117741.0453 | I20: 112840.4177 | J20: 28 | K20: 2984850 | L20: 106601 | M20: 86000 | N20: 34 | O20: 2705315.025 | P20: 96617.68163 | Q20: 77945.99131 | R20: 127 | S20: 15845653 | T20: 125516.8424 | U20: 117247.7444 | V20: 39.68140808 | W20: 0.8116297258 | X20: 0.1883702742 | Y20: 14361687.57 | Z20: 113762.0315 | AA20: 106267.345 | AB20: 168.8 | AC20: 110.3328068
A21: 2000-08-01 | B21: 109 | C21: 12771349 | D21: 117168 | E21: 105500 | F21: 55 | G21: 11616587.21 | H21: 106573.8859 | I21: 95960.88486 | J21: 30 | K21: 2830500 | L21: 94350 | M21: 87000 | N21: 80 | O21: 2574571.418 | P21: 85819.04727 | Q21: 79133.62069 | R21: 139 | S21: 15601849 | T21: 113028.3401 | U21: 102143.7151 | V21: 59.53552012 | W21: 0.8185791953 | X21: 0.1814208047 | Y21: 14191158.63 | Z21: 102808.5263 | AA21: 92908.06905 | AB21: 168.2 | AC21: 109.9406286
A22: 2000-09-01 | B22: 82 | C22: 10332211 | D22: 126002 | E22: 110000 | F22: 61 | G22: 9298483.419 | H22: 113395.6234 | I22: 98994.60784 | J22: 35 | K22: 4065650 | L22: 116161 | M22: 89900 | N22: 64 | O22: 3658885.703 | P22: 104539.2058 | Q22: 80905.59314 | R22: 117 | S22: 14397861 | T22: 123223.1107 | U22: 104324.1871 | V22: 61.84713625 | W22: 0.7176212494 | X22: 0.2823787506 | Y22: 12957369.12 | Z22: 110894.7593 | AA22: 93886.65447 | AB22: 170 | AC22: 111.1171632
A23: 2000-10-01 | B23: 94 | C23: 11317487 | D23: 120398 | E23: 99250 | F23: 54 | G23: 10179195.76 | H23: 108288.599 | I23: 89267.62444 | J23: 34 | K23: 3310700 | L23: 97373 | M23: 86350 | N23: 74 | O23: 2977716.113 | P23: 87579.40951 | Q23: 77665.08181 | R23: 128 | S23: 14628187 | T23: 115186.9053 | U23: 96330.42904 | V23: 58.52646661 | W23: 0.7736766696 | X23: 0.2263233304 | Y23: 13156911.87 | Z23: 103601.6262 | AA23: 86641.69835 | AB23: 170.1 | AC23: 111.1825263
A24: 2000-11-01 | B24: 81 | C24: 10028500 | D24: 123808 | E24: 118000 | F24: 69 | G24: 9009259.713 | H24: 111224.8518 | I24: 106007.1443 | J24: 23 | K24: 1998750 | L24: 86902 | M24: 83000 | N24: 75 | O24: 1795608.302 | P24: 78069.76992 | Q24: 74564.34723 | R24: 104 | S24: 12027250 | T24: 117674.7719 | U24: 112183.5208 | V24: 69.99711073 | W24: 0.8338148787 | X24: 0.1661851213 | Y24: 10804868.01 | Z24: 105714.9705 | AA24: 100781.8192 | AB24: 170.3 | AC24: 111.3132524
A25: 2000-12-01 | B25: 62 | C25: 7407880 | D25: 119481 | E25: 104450 | F25: 71 | G25: 6658894.875 | H25: 107400.6893 | I25: 93889.42176 | J25: 24 | K25: 2480210 | L25: 103342 | M25: 84500 | N25: 62 | O25: 2229444.545 | P25: 92893.44781 | Q25: 75956.49726 | R25: 86 | S25: 9888090 | T25: 115432.8866 | U25: 99445.98107 | V25: 68.74254785 | W25: 0.7491719837 | X25: 0.2508280163 | Y25: 8888339.42 | Z25: 103761.8667 | AA25: 89391.34188 | AB25: 170.2 | AC25: 111.2478893
A26: 2001-01-01 | B26: 55 | C26: 6140500 | D26: 111645.4545 | E26: 112000 | F26: 83 | G26: 5465068.814 | H26: 99364.88753 | I26: 99680.43436 | J26: 17 | K26: 1701900 | L26: 100111.7647 | M26: 90000 | N26: 132 | O26: 1514697.6 | P26: 89099.85884 | Q26: 80100.34904 | R26: 72 | S26: 7842400 | T26: 109142.498 | U26: 107225.7217 | V26: 93.63361981 | W26: 0.7829873508 | X26: 0.2170126492 | Y26: 6979766.415 | Z26: 97137.24646 | AA26: 95431.30817 | AB26: 171.9 | AC26: 112.359061
A27: 2001-02-01 | B27: 52 | C27: 7060515 | D27: 135779.1346 | E27: 113950 | F27: 77 | G27: 6276583.134 | H27: 120703.5218 | I27: 101298.0849 | J27: 20 | K27: 2142300 | L27: 107115 | M27: 100500 | N27: 98 | O27: 1904439.555 | P27: 95221.97777 | Q27: 89341.44393 | R27: 72 | S27: 9202815 | T27: 129106.4833 | U27: 110819.0086 | V27: 81.88853682 | W27: 0.7672125323 | X27: 0.2327874677 | Y27: 8181022.69 | Z27: 114771.7377 | AA27: 98514.72875 | AB27: 172.1 | AC27: 112.489787
A28: 2001-03-01 | B28: 98 | C28: 11426578 | D28: 116597.7347 | E28: 103950 | F28: 98 | G28: 10181544.63 | H28: 103893.3125 | I28: 92623.66773 | J28: 41 | K28: 4792850 | L28: 116898.7805 | M28: 116900 | N28: 111 | O28: 4270623.818 | P28: 104161.5565 | Q28: 104162.6432 | R28: 139 | S28: 16219428 | T28: 116686.6939 | U28: 107776.7322 | V28: 101.8415072 | W28: 0.7044994435 | X28: 0.2955005565 | Y28: 14452168.45 | Z28: 103972.5788 | AA28: 96033.4414 | AB28: 171.7 | AC28: 112.2283349
A29: 2001-04-01 | B29: 104 | C29: 12738679 | D29: 122487.2981 | E29: 119450 | F29: 70 | G29: 11278424.37 | H29: 108446.3882 | I29: 105757.2603 | J29: 42 | K29: 4472500 | L29: 106488.0952 | M29: 112250 | N29: 110 | O29: 3959810.354 | P29: 94281.1989 | Q29: 99382.60754 | R29: 146 | S29: 17211179 | T29: 118329.7424 | U29: 117579.0067 | V29: 80.39440703 | W29: 0.7401398242 | X29: 0.2598601758 | Y29: 15238234.73 | Z29: 104765.4196 | AA29: 104100.7419 | AB29: 172.8 | AC29: 112.9473283
A30: 2001-05-01 | B30: 139 | C30: 17134742 | D30: 123271.5252 | E30: 110000 | F30: 70 | G30: 15048637.98 | H30: 108263.5826 | I30: 96607.82625 | J30: 57 | K30: 6147250 | L30: 107846.4912 | M30: 93000 | N30: 84 | O30: 5398840.545 | P30: 94716.50079 | Q30: 81677.52583 | R30: 196 | S30: 23281992 | T30: 119198.7835 | U30: 105511.4129 | V30: 73.69648353 | W30: 0.7359654621 | X30: 0.2640345379 | Y30: 20447478.53 | Z30: 104686.6851 | AA30: 92665.71128 | AB30: 174.2 | AC30: 113.8624108
A31: 2001-06-01 | B31: 125 | C31: 17704226 | D31: 141633.808 | E31: 119900 | F31: 85 | G31: 15584574.47 | H31: 124676.5958 | I31: 105544.884 | J31: 39 | K31: 4238911 | L31: 108690.0256 | M31: 91000 | N31: 78 | O31: 3731404.251 | P31: 95677.03206 | Q31: 80104.95781 | R31: 164 | S31: 21943137 | T31: 135269.8245 | U31: 114317.1826 | V31: 83.64776048 | W31: 0.806822926 | X31: 0.193177074 | Y31: 19315978.72 | Z31: 119074.5449 | AA31: 100630.4735 | AB31: 173.8 | AC31: 113.6009587
A32: 2001-07-01 | B32: 142 | C32: 19461316 | D32: 137051.5211 | E32: 120000 | F32: 61 | G32: 17260400.99 | H32: 121552.1196 | I32: 106428.9855 | J32: 54 | K32: 5309500 | L32: 98324.07407 | M32: 89450 | N32: 72 | O32: 4709039.155 | P32: 87204.42879 | Q32: 79333.93961 | R32: 196 | S32: 24770816 | T32: 128750.4874 | U32: 113451.7609 | V32: 63.35779475 | W32: 0.7856550224 | X32: 0.2143449776 | Y32: 21969440.14 | Z32: 114189.8646 | AA32: 100621.2985 | AB32: 172.5 | AC32: 112.7512392
A33: 2001-08-01 | B33: 121 | C33: 14495979 | D33: 119801.4793 | E33: 118000 | F33: 53 | G33: 12819445.01 | H33: 105945.8266 | I33: 104352.6975 | J33: 50 | K33: 5222857 | L33: 104457.14 | M33: 93250 | N33: 59 | O33: 4618806.92 | P33: 92376.1384 | Q33: 82465.16137 | R33: 171 | S33: 19718836 | T33: 115737.2795 | U33: 111444.5567 | V33: 54.58919837 | W33: 0.7351336052 | X33: 0.2648663948 | Y33: 17438251.93 | Z33: 102351.6722 | AA33: 98555.42471 | AB33: 173 | AC33: 113.0780544
A34: 2001-09-01 | B34: 82 | C34: 9586776 | D34: 116911.9024 | E34: 114150 | F34: 76 | G34: 8400325.534 | H34: 102442.9943 | I34: 100022.9023 | J34: 40 | K34: 4051300 | L34: 101282.5 | M34: 90000 | N34: 66 | O34: 3549914.886 | P34: 88747.87216 | Q34: 78861.68385 | R34: 122 | S34: 13638076 | T34: 112269.0629 | U34: 106976.0486 | V34: 73.02941969 | W34: 0.7029419692 | X34: 0.2970580308 | Y34: 11950240.42 | Z34: 98374.7483 | AA34: 93736.79245 | AB34: 174.6 | AC34: 114.123863
A35: 2001-10-01 | B35: 89 | C35: 10898879 | D35: 122459.3146 | E35: 110000 | F35: 66 | G35: 9660704.884 | H35: 108547.2459 | I35: 97503.37968 | J35: 37 | K35: 3734065 | L35: 100920.6757 | M35: 91000 | N35: 116 | O35: 3309854.159 | P35: 89455.5178 | Q35: 80661.88683 | R35: 126 | S35: 14632944 | T35: 116963.0401 | U35: 105151.5406 | V35: 78.7591037 | W35: 0.7448179259 | X35: 0.2551820741 | Y35: 12970559.04 | Z35: 103675.3791 | AA35: 93205.73261 | AB35: 172.6 | AC35: 112.8166022
A36: 2001-11-01 | B36: 59 | C36: 7690056 | D36: 130339.9322 | E36: 120000 | F36: 88 | G36: 6820373.821 | H36: 115599.5563 | I36: 106428.9855 | J36: 26 | K36: 3011350 | L36: 115821.1538 | M36: 92250 | N36: 99 | O36: 2670791.046 | P36: 102722.7325 | Q36: 81817.28261 | R36: 85 | S36: 10701406 | T36: 126254.3828 | U36: 112191.2165 | V36: 91.09537364 | W36: 0.7186023967 | X36: 0.2813976033 | Y36: 9491164.867 | Z36: 111976.049 | AA36: 99503.3113 | AB36: 172.5 | AC36: 112.7512392
A37: 2001-12-01 | B37: 80 | C37: 9921414 | D37: 124017.675 | E37: 109900 | F37: 84 | G37: 8830096.937 | H37: 110376.2117 | I37: 97811.42622 | J37: 27 | K37: 2659406 | L37: 98496.51852 | M37: 88000 | N37: 115 | O37: 2366881.654 | P37: 87662.28347 | Q37: 78320.34128 | R37: 107 | S37: 12580820 | T37: 118622.8663 | U37: 105270.6522 | V37: 90.55295807 | W37: 0.7886142557 | X37: 0.2113857443 | Y37: 11196978.59 | Z37: 105574.8111 | AA37: 93691.28872 | AB37: 171.9 | AC37: 112.359061
A38: 2002-01-01 | B38: 76 | C38: 9002021 | D38: 118447.6447 | E38: 108450 | F38: 70 | G38: 8002522.929 | H38: 105296.3543 | I38: 96408.75218 | J38: 23 | K38: 2047900 | L38: 89039.13043 | M38: 82900 | N38: 71 | O38: 1820520.826 | P38: 79153.07939 | Q38: 73695.57912 | R38: 99 | S38: 11049921 | T38: 112997.3165 | U38: 103714.7766 | V38: 70.18533164 | W38: 0.8146683583 | X38: 0.1853316417 | Y38: 9823043.756 | Z38: 100451.1783 | AA38: 92199.28253 | AB38: 172.1 | AC38: 112.489787
A39: 2002-02-01 | B39: 72 | C39: 9486352 | D39: 131754.8889 | E39: 111000 | F39: 90 | G39: 8413523.496 | H39: 116854.493 | I39: 98446.81159 | J39: 21 | K39: 2508650 | L39: 119459.5238 | M39: 102000 | N39: 63 | O39: 2224942.287 | P39: 105949.6327 | Q39: 90464.63768 | R39: 93 | S39: 11995002 | T39: 129183.4206 | U39: 109117.7285 | V39: 84.3531856 | W39: 0.790858726 | X39: 0.209141274 | Y39: 10638465.78 | Z39: 114573.8366 | AA39: 96777.40957 | AB39: 172.5 | AC39: 112.7512392
A40: 2002-03-01 | B40: 98 | C40: 12471772 | D40: 127262.9796 | E40: 114500 | F40: 81 | G40: 10991228.02 | H40: 112155.388 | I40: 100907.5221 | J40: 36 | K40: 3537850 | L40: 98273.61111 | M40: 95250 | N40: 106 | O40: 3117866.175 | P40: 86607.39374 | Q40: 83942.72033 | R40: 134 | S40: 16009622 | T40: 120856.8298 | U40: 110246.0824 | V40: 86.52456829 | W40: 0.7790172685 | X40: 0.2209827315 | Y40: 14109094.2 | Z40: 106509.7224 | AA40: 97158.59385 | AB40: 173.6 | AC40: 113.4702326
A41: 2002-04-01 | B41: 115 | C41: 13452600 | D41: 116979.1304 | E41: 103000 | F41: 82 | G41: 11780971.35 | H41: 102443.2291 | I41: 90201.15436 | J41: 38 | K41: 3763800 | L41: 99047.36842 | M41: 90450 | N41: 93 | O41: 3296107.813 | P41: 86739.6793 | Q41: 79210.62536 | R41: 153 | S41: 17216400 | T41: 113058.94 | U41: 100256.355 | V41: 84.40478846 | W41: 0.7813828675 | X41: 0.2186171325 | Y41: 15077079.16 | Z41: 99010.1641 | AA41: 87798.43642 | AB41: 174.7 | AC41: 114.189226
A42: 2002-05-01 | B42: 171 | C42: 20651507 | D42: 120769.0468 | E42: 110900 | F42: 79 | G42: 18074991.28 | H42: 105701.7034 | I42: 97063.93497 | J42: 53 | K42: 5423195 | L42: 102324.434 | M42: 89900 | N42: 119 | O42: 4746588.339 | P42: 89558.27055 | Q42: 78683.92925 | R42: 224 | S42: 26074702 | T42: 116932.81 | U42: 106532.2763 | V42: 87.31947379 | W42: 0.7920131551 | X42: 0.2079868449 | Y42: 22821579.62 | Z42: 102344.0817 | AA42: 93241.13557 | AB42: 174.8 | AC42: 114.254589
A43: 2002-06-01 | B43: 130 | C43: 19095145 | D43: 146885.7308 | E43: 119950 | F43: 60 | G43: 16665134.39 | H43: 128193.3415 | I43: 104685.3988 | J43: 25 | K43: 2695250 | L43: 107810 | M43: 100000 | N43: 144 | O43: 2352257.784 | P43: 94090.31137 | Q43: 87274.19662 | R43: 155 | S43: 21790395 | T43: 142052.4607 | U43: 117482.3881 | V43: 70.38994474 | W43: 0.8763101816 | X43: 0.1236898184 | Y43: 19017392.18 | Z43: 123975.1439 | AA43: 102531.8104 | AB43: 175.3 | AC43: 114.5814042
A44: 2002-07-01 | B44: 135 | C44: 19143616 | D44: 141804.563 | E44: 125500 | F44: 64 | G44: 16707437.07 | H44: 123758.7931 | I44: 109529.1168 | J44: 51 | K44: 5695266 | L44: 111671.8824 | M44: 111000 | N44: 92 | O44: 4970497.647 | P44: 97460.73817 | Q44: 96874.35824 | R44: 186 | S44: 24838882 | T44: 134895.4907 | U44: 122175.3191 | V44: 70.4200735 | W44: 0.7707116609 | X44: 0.2292883391 | Y44: 21677934.71 | Z44: 117728.9558 | AA44: 106627.5282 | AB44: 175.3 | AC44: 114.5814042
A45: 2002-08-01 | B45: 142 | C45: 20033719 | D45: 141082.5282 | E45: 123750 | F45: 85 | G45: 17434539.59 | H45: 122778.4478 | I45: 107694.6459 | J45: 43 | K45: 5749650 | L45: 133712.7907 | M45: 119000 | N45: 89 | O45: 5003689.057 | P45: 116364.8618 | Q45: 103560.912 | R45: 185 | S45: 25783369 | T45: 139439.0885 | U45: 122690.7576 | V45: 85.89199359 | W45: 0.7770016013 | X45: 0.2229983987 | Y45: 22438228.64 | Z45: 121348.2284 | AA45: 106772.8299 | AB45: 175.8 | AC45: 114.9082194
A46: 2002-09-01 | B46: 116 | C46: 15645289 | D46: 134873.181 | E46: 121285 | F46: 72 | G46: =(C46/AC46)*100 -> 13584556.41 | H46: =(D46/AC46)*100 -> 117108.2449 | I46: =(E46/AC46)*100 -> 105309.8427 | J46: 40 | K46: 4681240 | L46: 117031 | M46: 113500 | N46: 77 | O46: =(K46/AC46)*100 -> 4064646.479 | P46: =(L46/AC46)*100 -> 101616.162 | Q46: =(M46/AC46)*100 -> 98550.25066 | R46: 156 | S46: 20326529 | T46: 130764.0913 | U46: 119492.099 | V46: 73.15150993 | W46: 0.7696980139 | X46: 0.2303019861 | Y46: =(S46/AC46)*100 -> 17649202.89 | Z46: =(T46/AC46)*100 -> 113540.3875 | AA46: =(U46/AC46)*100 -> 103753.0953 | AB46: 176.2 | AC46: 115.1696716
A47: 2002-10-01 | B47: 95 | C47: 13135620 | D47: 138269.6842 | E47: 119366 | F47: 80 | G47: 11398981.26 | H47: 119989.2764 | I47: 103584.8173 | J47: 24 | K47: 2681900 | L47: 111745.8333 | M47: 116500 | N47: 60 | O47: 2327330.407 | P47: 96972.10031 | Q47: 101097.7264 | R47: 119 | S47: 15817520 | T47: 133772.4991 | U47: 118880.0625 | V47: 76.60895008 | W47: 0.8304475038 | X47: 0.1695524962 | Y47: 13726311.67 | Z47: 116086.6568 | AA47: 103163.1248 | AB47: 176.3 | AC47: 115.2350346
A48: 2002-11-01 | B48: 91 | C48: 12274794 | D48: 134887.8462 | E48: 118750 | F48: 77 | G48: 10664061.28 | H48: 117187.4866 | I48: 103167.2937 | J48: 36 | K48: 4127845 | L48: 114662.3611 | M48: 109950 | N48: 96 | O48: 3586177.662 | P48: 99616.04617 | Q48: 95522.05423 | R48: 127 | S48: 16402639 | T48: 129797.9538 | U48: 116535.4151 | V48: 81.78149004 | W48: 0.7483426295 | X48: 0.2516573705 | Y48: 14250238.95 | Z48: 112765.5041 | AA48: 101243.3128 | AB48: 176.1 | AC48: 115.1043085
A49: 2002-12-01 | B49: 89 | C49: 11321076 | D49: 127203.1011 | E49: 115000 | F49: 66 | G49: 9869118.437 | H49: 110888.9712 | I49: 100250.9497 | J49: 20 | K49: 1881830 | L49: 94091.5 | M49: 95250 | N49: 66 | O49: 1640480.388 | P49: 82024.0194 | Q49: 83033.93875 | R49: 109 | S49: 13202906 | T49: 122483.6549 | U49: 112185.0029 | V49: 66 | W49: 0.8574684997 | X49: 0.1425315003 | Y49: 11509598.82 | Z49: 106774.8063 | AA49: 97796.98327 | AB49: 175.5 | AC49: 114.7121303
A50: 2003-01-01 | B50: 53 | C50: 7201105 | D50: 135869.9057 | E50: 114900 | F50: 81 | G50: 6252605.311 | H50: 117973.6851 | I50: 99765.84847 | J50: 28 | K50: 2653800 | L50: 94778.57143 | M50: 92000 | N50: 108 | O50: 2304252.469 | P50: 82294.73103 | Q50: 79882.14151 | R50: 81 | S50: 9854905 | T50: 124804.5344 | U50: 108733.3226 | V50: 88.27075502 | W50: 0.730712777 | X50: 0.269287223 | Y50: 8556857.78 | Z50: 108365.7986 | AA50: 94411.42024 | AB50: 176.2 | AC50: 115.1696716
A51: 2003-02-01 | B51: 88 | C51: 11781117 | D51: 133876.3295 | E51: 110200 | F51: 98 | G51: 10137304.42 | H51: 115196.6411 | I51: 94823.85639 | J51: 24 | K51: 2516550 | L51: 104856.25 | M51: 101250 | N51: 136 | O51: 2165417.203 | P51: 90225.7168 | Q51: 87122.64483 | R51: 112 | S51: 14297667 | T51: 128768.4696 | U51: 108624.6995 | V51: 104.6884269 | W51: 0.8239887668 | X51: 0.1760112332 | Y51: 12302721.62 | Z51: 110801.4779 | AA51: 93468.35665 | AB51: 177.8 | AC51: 116.2154801
A52: 2003-03-01 | B52: 101 | C52: 13003597 | D52: 128748.4851 | E52: 119575 | F52: 92 | G52: 11139092.82 | H52: 110288.0477 | I52: 102429.8911 | J52: 40 | K52: 4158400 | L52: 103960 | M52: 101900 | N52: 125 | O52: 3562153.117 | P52: 89053.82792 | Q52: 87289.19839 | R52: 141 | S52: 17161997 | T52: 122742.1657 | U52: 115292.2979 | V52: 99.99599254 | W52: 0.7576971957 | X52: 0.2423028043 | Y52: 14701245.94 | Z52: 105142.9367 | AA52: 98761.25876 | AB52: 178.6 | AC52: 116.7383844
A53: 2003-04-01 | B53: 106 | C53: 13711878 | D53: 129357.3396 | E53: 119725 | F53: 76 | G53: 11798667.43 | H53: 111308.1833 | I53: 103019.8385 | J53: 40 | K53: 3947600 | L53: 98690 | M53: 92000 | N53: 112 | O53: 3396793.607 | P53: 84919.84018 | Q53: 79163.29209 | R53: 146 | S53: 17659478 | T53: 122501.962 | U53: 113527.353 | V53: 84.04744059 | W53: 0.7764599837 | X53: 0.2235400163 | Y53: 15195461.03 | Z53: 105409.3326 | AA53: 97686.94575 | AB53: 177.8 | AC53: 116.2154801
A54: 2003-05-01 | B54: 133 | C54: 18246448 | D54: 137191.3383 | E54: 121900 | F54: 53 | G54: 15709366.86 | H54: 118115.5403 | I54: 104950.3892 | J54: 41 | K54: 4421477 | L54: 107840.9024 | M54: 102000 | N54: 97 | O54: 3806691.814 | P54: 92846.14181 | Q54: 87817.38886 | R54: 174 | S54: 22667925 | T54: 131466.4086 | U54: 118018.4188 | V54: 61.58239067 | W54: 0.8049456666 | X54: 0.1950543334 | Y54: 19516058.67 | Z54: 113186.6346 | AA54: 101608.5233 | AB54: 177.7 | AC54: 116.1501171
A55: 2003-06-01 | B55: 134 | C55: 18576521 | D55: 138630.7537 | E55: 116000 | F55: 58 | G55: 15930789.85 | H55: 118886.4914 | I55: 99478.8864 | J55: 70 | K55: 8489197 | L55: 121274.2429 | M55: 115950 | N55: 79 | O55: 7280136.758 | P55: 104001.9537 | Q55: 99436.00757 | R55: 204 | S55: 27065718 | T55: 133186.8619 | U55: 115984.3174 | V55: 64.58667681 | W55: 0.6863487235 | X55: 0.3136512765 | Y55: 23210926.61 | Z55: 114217.9371 | AA55: 99465.4374 | AB55: 178.4 | AC55: 116.6076584
A56: 2003-07-01 | B56: 142 | C56: 20587430 | D56: 144981.9014 | E56: 131750 | F56: 63 | G56: 17685037.78 | H56: 124542.5196 | I56: 113176.0364 | J56: 59 | K56: 6766600 | L56: 114688.1356 | M56: 102750 | N56: 72 | O56: 5812652.508 | P56: 98519.53403 | Q56: 88264.42308 | R56: 201 | S56: 27354030 | T56: 137488.0953 | U56: 124576.2344 | V56: 65.22634105 | W56: 0.7526287717 | X56: 0.2473712283 | Y56: 23497690.28 | Z56: 118105.1817 | AA56: 107013.62 | AB56: 178.1 | AC56: 116.4115693
A57: 2003-08-01 | B57: 159 | C57: 23860209 | D57: 150064.2075 | E57: 134900 | F57: 69 | G57: 20416180.88 | H57: 128403.6534 | I57: 115428.2765 | J57: 52 | K57: 6725075 | L57: 129328.3654 | M57: 113700 | N57: 117 | O57: 5754364.836 | P57: 110660.8622 | Q57: 97288.32494 | R57: 211 | S57: 30585284 | T57: 145504.8223 | U57: 130238.556 | V57: 79.55421293 | W57: 0.7801205639 | X57: 0.2198794361 | Y57: 26170545.72 | Z57: 124502.3784 | AA57: 111439.6742 | AB57: 178.8 | AC57: 116.8691105
A58: 2003-09-01 | B58: 132 | C58: 17914711 | D58: 135717.5076 | E58: 112750 | F58: 67 | G58: 15269089.1 | H58: 115674.9174 | I58: 96099.22238 | J58: 47 | K58: 5208204 | L58: 110812.8511 | M58: 111900 | N58: 94 | O58: 4439063.01 | P58: 94448.14915 | Q58: 95374.7493 | R58: 179 | S58: 23122915 | T58: 130107.9842 | U58: 112558.5461 | V58: 73.08147839 | W58: 0.7747600594 | X58: 0.2252399406 | Y58: 19708152.11 | Z58: 110893.8014 | AA58: 95936.0421 | AB58: 179.5 | AC58: 117.3266518
A59: 2003-10-01 | B59: 102 | C59: 13367588 | D59: 131054.7843 | E59: 123185 | F59: 50 | G59: 11418925.56 | H59: 111950.2506 | I59: 105227.6854 | J59: 57 | K59: 6337832 | L59: 111190.0351 | M59: 102600 | N59: 82 | O59: 5413933.449 | P59: 94981.28858 | Q59: 87643.46734 | R59: 159 | S59: 19705420 | T59: 124665.7074 | U59: 116564.2697 | V59: 60.29212389 | W59: 0.6783711283 | X59: 0.3216288717 | Y59: 16832859.01 | Z59: 106492.5425 | AA59: 99572.0932 | AB59: 179.1 | AC59: 117.0651996
A60: 2003-11-01 | B60: 68 | C60: 9026115 | D60: 132736 | E60: 109950 | F60: 108 | G60: 7718951.243 | H60: 113513.1463 | I60: 94027.01928 | J60: 22 | K60: 2336382 | L60: 106199 | M60: 99500 | N60: 165 | O60: 1998026.697 | P60: 90819.23985 | Q60: 85090.39035 | R60: 90 | S60: 11362497 | T60: 127279.4028 | U60: 107801.2477 | V60: 119.7204673 | W60: 0.7943777675 | X60: 0.2056222325 | Y60: 9716977.94 | Z60: 108846.7746 | AA60: 92189.44969 | AB60: 178.9 | AC60: 116.9344736
A61: 2003-12-01 | B61: 86 | C61: 12400016 | D61: 144186 | E61: 124150 | F61: 105 | G61: 10633963.65 | H61: 123650.5406 | I61: 106468.1357 | J61: 30 | K61: 3397145 | L61: 113238 | M61: 111500 | N61: 138 | O61: 2913312.082 | P61: 97110.25981 | Q61: 95619.79167 | R61: 116 | S61: 15797161 | T61: 137530.7001 | U61: 121429.6451 | V61: 112.096578 | W61: 0.7849521822 | X61: 0.2150478178 | Y61: 13547275.73 | Z61: 117943.1112 | AA61: 104135.223 | AB61: 178.4 | AC61: 116.6076584
A62: 2004-01-01 | B62: 37 | C62: 5067846 | D62: 136968 | E62: 136700 | F62: 123 | G62: 4321840.613 | H62: 116805.8116 | I62: 116577.2622 | J62: 19 | K62: 2193850 | L62: 115465 | M62: 93000 | N62: 182 | O62: 1870907.291 | P62: 98468.1315 | Q62: 79310.06132 | R62: 56 | S62: 7261696 | T62: 130471.6723 | U62: 123497.6785 | V62: =W62*F62+X62*N62 -> 140.8246445 | W62: 0.6978873806 | X62: 0.3021126194 | Y62: 6192747.903 | Z62: 111265.767 | AA62: 105318.3705 | AB62: 179.4 | AC62: 117.2612887
A63: 2004-02-01 | B63: 78 | C63: 11330250 | D63: 145259 | E63: 128500 | F63: 118 | G63: 9619499.618 | H63: 123326.3957 | I63: 109097.8311 | J63: 29 | K63: 3452250 | L63: 117939 | M63: 119000 | N63: 153 | O63: 2930996.011 | P63: 100131.4327 | Q63: 101032.2327 | R63: 107 | S63: 14782500 | T63: 138878.7889 | U63: 126281.4054 | V63: 126.1737697 | W63: 0.766463724 | X63: 0.233536276 | Y63: 12550495.63 | Z63: 117909.5304 | AA63: 107214.2213 | AB63: 180.2 | AC63: 117.784193
A64: 2004-03-01 | B64: 100 | C64: 13027139 | D64: 130271 | E64: 122950 | F64: 128 | G64: 11011291.2 | H64: 110112.5824 | I64: 103924.4498 | J64: 41 | K64: 5110906 | L64: 124656 | M64: 99900 | N64: 138 | O64: 4320033.299 | P64: 105366.4597 | Q64: 84441.25691 | R64: 141 | S64: 18138045 | T64: 128688.8153 | U64: 116455.0121 | V64: 130.8177822 | W64: 0.7182217819 | X64: 0.2817782181 | Y64: 15331324.5 | Z64: 108775.2284 | AA64: 98434.51043 | AB64: 181 | AC64: 118.3070973
A65: 2004-04-01 | B65: 133 | C65: 17437366 | D65: 131108 | E65: 120900 | F65: 124 | G65: 14698466.59 | H65: 110514.7737 | I65: 101910.1515 | J65: 58 | K65: 6684983 | L65: 115258 | M65: 104950 | N65: 165 | O65: 5634967.993 | P65: 97154.34444 | Q65: 88465.42929 | R65: 191 | S65: 24122349 | T65: 126715.5181 | U65: 116479.8053 | V65: 135.3622559 | W65: 0.7228718066 | X65: 0.2771281934 | Y65: 20333434.59 | Z65: 106812.2221 | AA65: 98184.23993 | AB65: 181.5 | AC65: 118.6339125
A66: 2004-05-01 | B66: 130 | C66: 18306793 | D66: 140821 | E66: 132900 | F66: 119 | G66: 15313213.63 | H66: 117793.5456 | I66: 111167.8103 | J66: 44 | K66: 5393585 | L66: 122581 | M66: 100500 | N66: 148 | O66: 4511610.489 | P66: 102536.2028 | Q66: 84065.95134 | R66: 174 | S66: 23700378 | T66: 136670.054 | U66: 125526.609 | V66: 125.5996401 | W66: 0.7724262035 | X66: 0.2275737965 | Y66: 19824824.12 | Z66: 114321.3742 | AA66: 105000.1373 | AB66: 182.9 | AC66: 119.548995
A67: 2004-06-01 | B67: 168 | C67: 24562914 | D67: 146207 | E67: 129550 | F67: 105 | G67: 20501479.27 | H67: 122031.9291 | I67: 108129.1348 | J67: 54 | K67: 6769350 | L67: 125358 | M67: 120450 | N67: 144 | O67: 5650049.857 | P67: 104630.2747 | Q67: 100533.8039 | R67: 222 | S67: 31332264 | T67: 141702.564 | U67: 127583.9408 | V67: 113.4259679 | W67: 0.7839495416 | X67: 0.2160504584 | Y67: 26151529.13 | Z67: 118272.2937 | AA67: 106488.1601 | AB67: 183.3 | AC67: 119.8104472
A68: 2004-07-01 | B68: 137 | C68: 20281085 | D68: 148037 | E68: 134000 | F68: 96 | G68: 16936883.17 | H68: 123626.7869 | I68: 111904.385 | J68: 53 | K68: 6325175 | L68: 119342 | M68: 108900 | N68: 135 | O68: 5282200.138 | P68: 99663.38146 | Q68: 90943.1905 | R68: 190 | S68: 26606260 | T68: 141215.2634 | U68: 128032.9121 | V68: 105.2715709 | W68: 0.7622674138 | X68: 0.2377325862 | Y68: 22219083.3 | Z68: 117929.9045 | AA68: 106921.226 | AB68: 183.2 | AC68: 119.7450842
A69: 2004-08-01 | B69: 131 | C69: 20620628 | D69: 157409 | E69: 144000 | F69: 126 | G69: 17211043.35 | H69: 131381.6981 | I69: 120189.8527 | J69: 50 | K69: 6362150 | L69: 127243 | M69: 107450 | N69: 128 | O69: 5310179.662 | P69: 106203.5932 | Q69: 89683.33106 | R69: 181 | S69: 26982778 | T69: 150296.2921 | U69: 135382.037 | V69: 126.4715712 | W69: 0.7642144185 | X69: 0.2357855815 | Y69: 22521223.01 | Z69: 125445.064 | AA69: 112996.8548 | AB69: 183.3 | AC69: 119.8104472
A70: 2004-09-01 | B70: 94 | C70: 12765322 | D70: 135801 | E70: 127700 | F70: 76 | G70: 10637188.93 | H70: 113161.3362 | I70: 106410.8706 | J70: 51 | K70: 6374513 | L70: 124990 | M70: 117500 | N70: 121 | O70: 5311804.837 | P70: 104152.6602 | Q70: 97911.33351 | R70: 145 | S70: 19139835 | T70: 132200.4016 | U70: 124302.8948 | V70: 90.98722873 | W70: 0.6669504727 | X70: 0.3330495273 | Y70: 15948993.77 | Z70: 110161.0009 | AA70: 103580.1038 | AB70: 183.6 | AC70: 120.0065363
A71: 2004-10-01 | B71: 101 | C71: 14528761 | D71: 143849 | E71: 127250 | F71: 126 | G71: 12047584.61 | H71: 119282.9174 | I71: 105518.6427 | J71: 44 | K71: 5512830 | L71: 125292 | M71: 115750 | N71: 164 | O71: 4571366.123 | P71: 103895.0238 | Q71: 95982.57678 | R71: 145 | S71: 20041591 | T71: 138744.5357 | U71: 124086.701 | V71: 136.4526402 | W71: 0.7249305207 | X71: 0.2750694793 | Y71: 16618950.73 | Z71: 115050.1775 | AA71: 102895.562 | AB71: 184.5 | AC71: 120.5948036
A72: 2004-11-01 | B72: 87 | C72: 12468360 | D72: 143314 | E72: 129000 | F72: 131 | G72: 10322268.27 | H72: 118646.3621 | I72: 106796.131 | J72: 24 | K72: 3001560 | L72: 125065 | M72: 111450 | N72: 155 | O72: 2484922.44 | P72: 103538.435 | Q72: 92266.88988 | R72: 111 | S72: 15469920 | T72: 139773.2274 | U72: 125594.8513 | V72: 135.6566136 | W72: 0.805974433 | X72: 0.194025567 | Y72: 12807190.71 | Z72: 115715.038 | AA72: 103977.0867 | AB72: 184.8 | AC72: 120.7908928
A73: 2004-12-01 | B73: 78 | C73: 11495164 | D73: 147374 | E73: 135250 | F73: 116 | G73: 9568358.536 | H73: 122671.3487 | I73: 112579.5589 | J73: 34 | K73: 4114050 | L73: 121001 | M73: 116000 | N73: 201 | O73: 3424457.923 | P73: 100718.959 | Q73: 96556.22053 | R73: 112 | S73: 15609214 | T73: 140422.9876 | U73: 130176.3645 | V73: 138.4030659 | W73: 0.7364345187 | X73: 0.2635654813 | Y73: 12992816.46 | Z73: 116885.4565 | AA73: 108356.36 | AB73: 183.8 | AC73: 120.1372624
A74: 2005-01-01 | B74: 46 | C74: 6381251 | D74: 138723 | E74: 132750 | F74: 128 | G74: 5302977.87 | H74: 115282.2541 | I74: 110318.5429 | J74: 16 | K74: 2039100 | L74: 127444 | M74: 118000 | N74: 122 | O74: 1694542.681 | P74: 105909.1253 | Q74: 98060.92703 | R74: 62 | S74: 8420351 | T74: 135991.6401 | U74: 129178.0913 | V74: 126.5470202 | W74: 0.7578366983 | X74: 0.2421633017 | Y74: 6997520.551 | Z74: 113012.4263 | AA74: 107350.1982 | AB74: 184.1 | AC74: 120.3333515
A75: 2005-02-01 | B75: 75 | C75: 10674830 | D75: 142331 | E75: 126700 | F75: 133 | G75: 8818358.71 | H75: 117578.0611 | I75: 104665.4653 | J75: 24 | K75: 2950250 | L75: 122927 | M75: 113900 | N75: 168 | O75: 2437168.815 | P75: 101548.6318 | Q75: 94091.52718 | R75: 99 | S75: 13625080 | T75: 138129.4356 | U75: 123928.4053 | V75: 140.5785794 | W75: 0.7834691613 | X75: 0.2165308387 | Y75: 11255527.53 | Z75: 114107.1953 | AA75: 102375.8816 | AB75: 185.2 | AC75: 121.0523449
A76: 2005-03-01 | B76: 101 | C76: 13203822 | D76: 130731 | E76: 123900 | F76: 154 | G76: =(C76/AC76)*100 -> 10843127.93 | H76: =(D76/AC76)*100 -> 107357.7755 | I76: =(E76/AC76)*100 -> 101748.0811 | J76: 43 | K76: 5042455 | L76: 117266 | M76: 112000 | N76: 161 | O76: =(K76/AC76)*100 -> 4140921.066 | P76: =(L76/AC76)*100 -> 96300.16524 | Q76: =(M76/AC76)*100 -> 91975.66649 | R76: 144 | S76: 18246277 | T76: 127009.8761 | U76: 120611.3722 | V76: 155.934487 | W76: 0.7236447194 | X76: 0.2763552806 | Y76: =(S76/AC76)*100 -> 14984049 | Z76: =(T76/AC76)*100 -> 104301.9465 | AA76: =(U76/AC76)*100 -> 99047.42268 | AB76: 186.3 | AC76: 121.7713383
A77: 2005-04-01 | B77: 113 | C77: 17609814 | D77: 155839 | E77: 130000 | F77: 140 | G77: 14353515.15 | H77: 127022.2075 | I77: 105961.1969 | J77: 55 | K77: 6792488 | L77: 123500 | M77: 100000 | N77: 172 | O77: 5536462.759 | P77: 100663.1371 | Q77: 81508.61303 | R77: 168 | S77: 24402302 | T77: 146837.2972 | U77: 121649.3682 | V77: 148.9073406 | W77: 0.7216456054 | X77: 0.2783543946 | Y77: 19889977.91 | Z77: 119685.0444 | AA77: 99154.71275 | AB77: 187.7 | AC77: 122.6864208
A78: 2005-05-01 | B78: 139 | C78: 20181725 | D78: 145192 | E78: 131052 | F78: 134 | G78: 16476177.93 | H78: 118533.4369 | I78: 106989.6686 | J78: 40 | K78: 4411978 | L78: 110299 | M78: 96700 | N78: 164 | O78: 3601898.973 | P78: 90047.10695 | Q78: 78945.00623 | R78: 179 | S78: 24593703 | T78: 138932.3835 | U78: 124889.436 | V78: 139.3818386 | W78: 0.8206053802 | X78: 0.1793946198 | Y78: 20078076.9 | Z78: 113423.1425 | AA78: 101958.6071 | AB78: 187.4 | AC78: 122.4903317
A79: 2005-06-01 | B79: 183 | C79: 27533716 | D79: 150457 | E79: 133500 | F79: 123 | G79: 22430399.9 | H79: 122570.1128 | I79: 108756.057 | J79: 78 | K79: 10130639 | L79: 129880 | M79: 123050 | N79: 146 | O79: 8252946.459 | P79: 105807.0163 | Q79: 100242.9424 | R79: 261 | S79: 37664355 | T79: 144922.3729 | U79: 130689.2476 | V79: 129.1863451 | W79: 0.7310284751 | X79: 0.2689715249 | Y79: 30683346.35 | Z79: 118061.3172 | AA79: 106466.2716 | AB79: 187.8 | AC79: =(AB79/$AD$14)*100 -> 122.7517839
A80: 2005-07-01 | B80: 148 | C80: 21940400 | D80: 148246 | E80: 128750 | F80: 135 | G80: 17816870.29 | H80: 120384.3026 | I80: 104552.4261 | J80: 62 | K80: 7497395 | L80: 120926 | M80: 115000 | N80: 138 | O80: 6088317.18 | P80: 98198.88685 | Q80: 93386.63305 | R80: 210 | S80: 29437795 | T80: 141287.9778 | U80: 125248.0672 | V80: 135.7640581 | W80: 0.7453139748 | X80: 0.2546860252 | Y80: 23905187.47 | Z80: 114733.9873 | AA80: 101708.6547 | AB80: 188.4 | AC80: 123.1439621
A81: 2005-08-01 | B81: 153 | C81: 23799309 | D81: 155551 | E81: 139900 | F81: 133 | G81: 19193969.16 | H81: 125450.7472 | I81: 112828.3298 | J81: 67 | K81: 8661500 | L81: 129276 | M81: 116000 | N81: 134 | O81: 6985436.588 | P81: 104260.1513 | Q81: 93553.1541 | R81: 220 | S81: 32460809 | T81: 148540.056 | U81: 133522.776 | V81: 133.2668295 | W81: 0.7331705442 | X81: 0.2668294558 | Y81: 26179405.75 | Z81: 119796.472 | AA81: 107685.1452 | AB81: 189.7 | AC81: 123.9936816
A82: 2005-09-01 | B82: 127 | C82: 19982590 | D82: 157343 | E82: 142000 | F82: 145 | G82: 15881401.29 | H82: =(D82/AC82)*100 -> 125050.2224 | I82: =(E82/AC82)*100 -> 112856.1905 | J82: 58 | K82: 7254675 | L82: 125081 | M82: 127750 | N82: 112 | O82: =(K82/AC82)*100 -> 5765739.321 | P82: =(L82/AC82)*100 -> 99409.61381 | Q82: =(M82/AC82)*100 -> 101530.8333 | R82: 185 | S82: 27237265 | T82: 148749.9814 | U82: 138204.4971 | V82: 136.2104143 | W82: 0.7336489181 | X82: 0.2663510819 | Y82: =(S82/AC82)*100 -> 21647140.61 | Z82: =(T82/AC82)*100 -> 118220.8185 | AA82: =(U82/AC82)*100 -> 109839.6693 | AB82: 192.5 | AC82: 125.8238466
A83: 2005-10-01 | B83: 96 | C83: 15818026 | D83: 164771 | E83: 147450 | F83: 142 | G83: 12597741.6 | H83: 131226.392 | I83: 117431.6567 | J83: 41 | K83: 4867200 | L83: 118712 | M83: 115000 | N83: 107 | O83: 3876319.833 | P83: 94544.23078 | Q83: 91587.93163 | R83: 137 | S83: 20685226 | T83: 153933.3923 | U83: 139814.5678 | V83: 133.764557 | W83: 0.7647016281 | X83: 0.2352983719 | Y83: 16474061.43 | Z83: 122595.1392 | AA83: 111350.6703 | AB83: 192.1 | AC83: 125.5623945
A84: 2005-11-01 | B84: 83 | C84: 13523676 | D84: 162936 | E84: 145000 | F84: 138 | G84: =(C84/AC84)*100 -> 10872358.02 | H84: 130992.3815 | I84: 116572.736 | J84: 40 | K84: 5061950 | L84: 126549 | M84: 112250 | N84: 157 | O84: 4069554.215 | P84: 101739.0564 | Q84: 90243.37669 | R84: 123 | S84: 18585626 | T84: 153025.6976 | U84: 136080.2648 | V84: 143.1748082 | W84: 0.7276416732 | X84: 0.2723583268 | Y84: 14941912.23 | Z84: 123024.9948 | AA84: 109401.7158 | AB84: 190.3 | AC84: 124.3858598
A85: 2005-12-01 | B85: 66 | C85: 10485970 | D85: 158878 | E85: 136620 | F85: 127 | G85: 8456858.339 | H85: 128133.9484 | I85: 110183.0337 | J85: 29 | K85: 3870300 | L85: 133459 | M85: 127500 | N85: 136 | O85: 3121368.727 | P85: 107633.7103 | Q85: 102827.8202 | R85: 95 | S85: 14356270 | T85: 152025.3039 | U85: 134161.3435 | V85: 129.4263057 | W85: 0.7304104757 | X85: 0.2695895243 | Y85: 11578227.07 | Z85: 122607.299 | AA85: 108200.1452 | AB85: 189.7 | AC85: 123.9936816
A86: 2006-01-01 | B86: 55 | C86: 8600900 | D86: 156380 | E86: 139175 | F86: 148 | G86: 6896572.462 | H86: 125392.2266 | I86: 111596.5158 | J86: 25 | K86: 3078900 | L86: 128288 | M86: 119500 | N86: 127 | O86: 2468794.772 | P86: 102866.8498 | Q86: 95820.25245 | R86: 80 | S86: 11679800 | T86: 148974.6969 | U86: 133988.4936 | V86: 142.4642117 | W86: 0.7363910341 | X86: 0.2636089659 | Y86: 9365367.234 | Z86: 119454.3353 | AA86: 107437.7513 | AB86: 190.8 | AC86: 124.712675
A87: 2006-02-01 | B87: 70 | C87: 9840436 | D87: 140578 | E87: 135950 | F87: 144 | G87: 7894623.515 | H87: 112780.611 | I87: 109067.7351 | J87: 31 | K87: 4491880 | L87: 144899 | M87: 130000 | N87: 158 | O87: 3603671.776 | P87: 116247.192 | Q87: 104294.2667 | R87: 101 | S87: 14332316 | T87: 141932.2412 | U87: 134085.2151 | V87: 148.3877291 | W87: 0.6865907785 | X87: 0.3134092215 | Y87: 11498295.29 | Z87: 113867.0694 | AA87: 107571.6861 | AB87: 190.7 | AC87: 124.6473119
A88: 2006-03-01 | B88: 102 | C88: 15790088 | D88: 154804 | E88: 126400 | F88: 134 | G88: 12582041.04 | H88: 123352.7186 | I88: 100719.5139 | J88: 51 | K88: 8076600 | L88: 158364 | M88: 126000 | N88: 124 | O88: 6435690.078 | P88: 126189.4391 | Q88: 100400.7812 | R88: 153 | S88: 23866688 | T88: 156008.7208 | U88: 126264.6381 | V88: 130.6159527 | W88: 0.6615952746 | X88: 0.3384047254 | Y88: 19017731.12 | Z88: 124312.6782 | AA88: 100611.6533 | AB88: 192 | AC88: 125.4970314
A89: 2006-04-01 | B89: 110 | C89: 16070427 | D89: 146094 | E89: 131700 | F89: 116 | G89: 12739074.67 | H89: 115809.1427 | I89: 104398.9767 | J89: 53 | K89: 7558365 | L89: 142610 | M89: 124900 | N89: 90 | O89: 5991538.128 | P89: 113047.3657 | Q89: 99008.59672 | R89: 163 | S89: 23628792 | T89: 144979.54 | U89: 129524.8197 | V89: 107.6831343 | W89: 0.6801205495 | X89: 0.3198794505 | Y89: 18730612.79 | Z89: 114925.707 | AA89: 102674.7049 | AB89: 193 | AC89: 126.1506618
A90: 2006-05-01 | B90: 140 | C90: 20030844 | D90: 143077 | E90: 127004 | F90: 109 | G90: 15829298.6 | H90: 113066.0573 | I90: 100364.4299 | J90: 73 | K90: 11450585 | L90: 156857 | M90: 129000 | N90: 133 | O90: 9048781.423 | P90: 123955.6501 | Q90: 101941.7614 | R90: 213 | S90: 31481429 | T90: 148089.1315 | U90: 127729.9952 | V90: 117.7294017 | W90: 0.6362749289 | X90: 0.3637250711 | Y90: 24878080.02 | Z90: 117026.8752 | AA90: 100938.1449 | AB90: 193.6 | AC90: 126.54284
A91: 2006-06-01 | B91: 135 | C91: 20518475 | D91: 150871 | E91: 135400 | F91: 93 | G91: 16172878.35 | H91: 118918.113 | I91: 106723.7077 | J91: 86 | K91: 13082250 | L91: 152119 | M91: 143000 | N91: 116 | O91: 10311567.39 | P91: 119901.7998 | Q91: 112714.1078 | R91: 221 | S91: 33600725 | T91: 151356.9017 | U91: 138359.0165 | V91: 101.9549184 | W91: 0.6106557225 | X91: 0.3893442775 | Y91: 26484445.74 | Z91: 119301.1059 | AA91: 109056.0357 | AB91: 194.1 | AC91: 126.8696552
A92: 2006-07-01 | B92: 132 | C92: 21276139 | D92: 161182 | E92: 145500 | F92: 100 | G92: 16726988.52 | H92: 126718.9251 | I92: 114389.9666 | J92: 53 | K92: 8391907 | L92: 158337 | M92: 137700 | N92: 102 | O92: 6597594.237 | P92: 124482.2278 | Q92: 108257.721 | R92: 185 | S92: 29668046 | T92: 160377.263 | U92: 143293.6911 | V92: 100.5657202 | W92: 0.7171398817 | X92: 0.2828601183 | Y92: 23324582.76 | Z92: 126086.2526 | AA92: 112655.3989 | AB92: 194.6 | AC92: 127.1964704
A93: 2006-08-01 | B93: 135 | C93: 21177330 | D93: 156869 | E93: 140000 | F93: 109 | G93: 16606637.68 | H93: 123012.0439 | I93: 109783.8715 | J93: 58 | K93: 8117580 | L93: 139958 | M93: 134450 | N93: 117 | O93: 6365566.855 | P93: 109750.9364 | Q93: 105431.7252 | R93: 193 | S93: 29294910 | T93: 152182.9847 | U93: 138462.1025 | V93: 111.2167892 | W93: 0.7229013504 | X93: 0.2770986496 | Y93: 22972204.54 | Z93: 119337.4089 | AA93: 108577.8976 | AB93: 195.1 | AC93: 127.5232856
A94: 2006-09-01 | B94: 99 | C94: 17389500 | D94: 175651 | E94: 159000 | F94: 97 | G94: 13734892.04 | H94: 138735.8763 | I94: 125584.2798 | J94: 47 | K94: 7409800 | L94: 157655 | M94: 130000 | N94: 109 | O94: 5852543.375 | P94: 124521.9474 | Q94: 102678.9709 | R94: 146 | S94: 24799300 | T94: 170273.9627 | U94: 150335.0699 | V94: 100.5854883 | W94: 0.7012093083 | X94: 0.2987906917 | Y94: 19587435.41 | Z94: 134488.8867 | AA94: 118740.3867 | AB94: 193.7 | AC94: 126.6082031
A95: 2006-10-01 | B95: 78 | C95: 10979064 | D95: 140757 | E95: 122000 | F95: 108 | G95: 8734816.952 | H95: 111984.6491 | I95: 97061.79581 | J95: 47 | K95: 7607664 | L95: 161865 | M95: 144000 | N95: 97 | O95: 6052569.916 | P95: 128777.931 | Q95: 114564.7426 | R95: 125 | S95: 18586728 | T95: 149396.6364 | U95: 131004.7376 | V95: 103.4976312 | W95: 0.5906937466 | X95: 0.4093062534 | Y95: 14787386.87 | Z95: 118858.2444 | AA95: 104225.8614 | AB95: 192.3 | AC95: 125.6931205
A96: 2006-11-01 | B96: 67 | C96: 10318799 | D96: 154011 | E96: 135000 | F96: 124 | G96: 8188227.474 | H96: 122211.6161 | I96: 107125.9077 | J96: 36 | K96: 5119084 | L96: 142196 | M96: 129000 | N96: 133 | O96: 4062122.37 | P96: 112836.1153 | Q96: 102364.7562 | R96: 103 | S96: 15437883 | T96: 150093.2363 | U96: 133010.4459 | V96: 126.9843312 | W96: 0.6684076437 | X96: 0.3315923563 | Y96: 12250349.84 | Z96: 119102.7717 | AA96: 105547.1462 | AB96: 192.8 | AC96: 126.0199357
A97: 2006-12-01 | B97: 75 | C97: 11540887 | D97: 153878 | E97: 139900 | F97: 148 | G97: 9153237.62 | H97: 122042.777 | I97: 110956.6312 | J97: 39 | K97: 5371680 | L97: 147367 | M97: 118000 | N97: 101 | O97: 4260353.945 | P97: 116878.8126 | Q97: 93587.43736 | R97: 114 | S97: 16912567 | T97: 151810.0106 | U97: 132944.2379 | V97: 133.0721088 | W97: 0.6823852937 | X97: 0.3176147063 | Y97: 13413591.57 | Z97: 120402.6259 | AA97: 105439.9198 | AB97: 192.9 | AC97: 126.0852988
A98: 2007-01-01 | B98: 66 | C98: 9529205 | D98: 144381 | E98: 130400 | F98: 125 | G98: 7549916.908 | H98: 114391.9722 | I98: 103314.9318 | J98: 24 | K98: 4099407 | L98: 170808 | M98: 160350 | N98: 117 | O98: 3247929.1 | P98: 135329.884 | Q98: 127044.0898 | R98: 90 | S98: 13628612 | T98: 152330.0875 | U98: 139408.7853 | V98: 122.5936467 | W98: 0.6992058326 | X98: 0.3007941674 | Y98: 10797846.01 | Z98: 120689.9739 | AA98: 110452.5241 | AB98: 193.1 | AC98: 126.2160248
A99: 2007-02-01 | B99: 82 | C99: 12525884 | D99: 152754 | E99: 135000 | F99: 146 | G99: 9852729.407 | H99: 120154.6995 | I99: 106189.5887 | J99: 38 | K99: 5513800 | L99: 145100 | M99: 137500 | N99: 150 | O99: 4337097.438 | P99: 114134.1431 | Q99: 108156.0626 | R99: 120 | S99: 18039684 | T99: 150414.5674 | U99: 135764.1209 | V99: 147.2225935 | W99: 0.6943516305 | X99: 0.3056483695 | Y99: 14189826.84 | Z99: 118314.5262 | AA99: 106790.6382 | AB99: 194.5 | AC99: 127.1311074
A100: 2007-03-01 | B100: 111 | C100: 18259095 | D100: 164496 | E100: 146200 | F100: 143 | G100: 14223469.33 | H100: 128139.0896 | I100: 113886.872 | J100: 36 | K100: 5108200 | L100: 141894 | M100: 135000 | N100: 148 | O100: 3979185.497 | P100: 110532.5843 | Q100: 105162.2963 | R100: 147 | S100: 23367295 | T100: 159555.0971 | U100: 143751.6276 | V100: 144.0930234 | W100: 0.781395322 | X100: 0.218604678 | Y100: 18202654.82 | Z100: 124290.2252 | AA100: 111979.639 | AB100: 196.4 | AC100: 128.3730051
A101: 2007-04-01 | B101: 115 | C101: 18226865 | D101: 158494 | E101: 127000 | F101: 142 | G101: 14126435.94 | H101: 122838.2027 | I101: 98429.28909 | J101: 63 | K101: 9448042 | L101: 149968 | M101: 116900 | N101: 127 | O101: 7322551.633 | P101: 116230.2648 | Q101: 90601.44799 | R101: 178 | S101: 27674907 | T101: 155583.2764 | U101: 123551.9225 | V101: 136.8790928 | W101: 0.6586061879 | X101: 0.3413938121 | Y101: 21448987.57 | Z101: 120582.2936 | AA101: 95756.91258 | AB101: 197.4 | AC101: 129.0266354
A102: 2007-05-01 | B102: 132 | C102: 21220325 | D102: 160760 | E102: 142900 | F102: 120 | G102: 16297855.87 | H102: 123468.576 | I102: 109751.552 | J102: 63 | K102: 8955125 | L102: 142145 | M102: 121500 | N102: 118 | O102: 6877808.73 | P102: 109171.689 | Q102: 93315.7003 | R102: 195 | S102: 30175450 | T102: 155235.6532 | U102: 136549.1527 | V102: 119.4064629 | W102: 0.7032314348 | X102: 0.2967685652 | Y102: 23175664.6 | Z102: 119225.7094 | AA102: 104873.9079 | AB102: 199.2 | AC102: 130.2031701
A103: 2007-06-01 | B103: 142 | C103: 24133160 | D103: 169951 | E103: 141500 | F103: 99 | G103: 18525701.81 | H103: 130462.0509 | I103: 108621.7804 | J103: 78 | K103: 12496900 | L103: 160216 | M103: 148950 | N103: 128 | O103: 9593183.94 | P103: 122989.0259 | Q103: 114340.7363 | R103: 220 | S103: 36630060 | T103: 166629.7572 | U103: 144041.6804 | V103: 108.8937894 | W103: 0.6588348477 | X103: 0.3411651523 | Y103: 28118885.75 | Z103: 127912.5152 | AA103: 110572.8889 | AB103: 199.3 | AC103: 130.2685331
A104: 2007-07-01 | B104: 116 | C104: 16684040 | D104: 143827 | E104: 130500 | F104: 106 | G104: 12826729.08 | H104: 110574.5349 | I104: 100328.706 | J104: 77 | K104: 12360158 | L104: 160521 | M104: 149298 | N104: 108 | O104: 9502518.456 | P104: 123408.9212 | Q104: 114780.6525 | R104: 193 | S104: 29044198 | T104: 150931.3613 | U104: 138499.7475 | V104: 106.8511275 | W104: 0.5744362437 | X104: 0.4255637563 | Y104: 22329247.53 | Z104: 116036.3845 | AA104: 106478.9307 | AB104: 199 | AC104: 130.072444
A105: 2007-08-01 | B105: 118 | C105: 18521327 | D105: 156960 | E105: 138950 | F105: 112 | G105: 14267918.87 | H105: 120914.2598 | I105: 107040.2421 | J105: 69 | K105: 10447150 | L105: 151407 | M105: 135000 | N105: 106 | O105: 8047970.244 | P105: 116636.5019 | Q105: 103997.3565 | R105: 187 | S105: 28968477 | T105: 154957.374 | U105: 137525.4777 | V105: 109.8361686 | W105: 0.6393614342 | X105: 0.3606385658 | Y105: 22315889.11 | Z105: 119371.5353 | AA105: 105942.8602 | AB105: 198.6 | AC105: 129.8109919
A106: 2007-09-01 | B106: 72 | C106: 11065630 | D106: 153689 | E106: 144500 | F106: 102 | G106: 8477462.075 | H106: 117742.2947 | I106: 110702.533 | J106: 41 | K106: 6049563 | L106: 147550 | M106: 132000 | N106: 99 | O106: 4634615.553 | P106: 113039.1608 | Q106: 101126.1893 | R106: 113 | S106: 17115193 | T106: 151519.0994 | U106: 140081.7304 | V106: 100.9396153 | W106: 0.6465384293 | X106: 0.3534615707 | Y106: 13112077.63 | Z106: 116079.9176 | AA106: 107317.6635 | AB106: 199.7 | AC106: 130.5299853
A107: 2007-10-01 | B107: 67 | C107: 10726703 | D107: 129050 | E107: 138000 | F107: 119 | G107: 8226045.964 | H107: 98965.28613 | I107: 105828.8221 | J107: 52 | K107: 7082300 | L107: 136198 | M107: 129050 | N107: 111 | O107: 5431242.51 | P107: 104446.9124 | Q107: 98965.28613 | R107: 119 | S107: 17809003 | T107: 131892.6229 | U107: 134440.7561 | V107: 115.818553 | W107: 0.6023191192 | X107: 0.3976808808 | Y107: 13657288.47 | Z107: 101145.2241 | AA107: 103099.325 | AB107: 199.5 | AC107: 130.3992592
A108: 2007-11-01 | B108: 69 | C108: 10834343 | D108: 120000 | E108: 135425 | F108: 99 | G108: 8254801.757 | H108: 91429.28287 | I108: 103181.7553 | J108: 33 | K108: 4137950 | L108: 125392 | M108: 120000 | N108: 106 | O108: 3152748.342 | P108: 95537.50531 | Q108: 91429.28287 | R108: 102 | S108: 14972293 | T108: 121490.2077 | U108: 131161.9336 | V108: 100.9346168 | W108: 0.7236261673 | X108: 0.2763738327 | Y108: 11407550.1 | Z108: 92564.68805 | AA108: 99933.67943 | AB108: 200.8 | AC108: 131.2489787
A109: 2007-12-01 | B109: 62 | C109: 7752196 | D109: 165000 | E109: 124450 | F109: 123 | G109: 5924182.749 | H109: 126092.033 | I109: 95103.96062 | J109: 27 | K109: 5802800 | L109: 214918 | M109: 165000 | N109: 173 | O109: 4434465.751 | P109: 164239.076 | Q109: 126092.033 | R109: 89 | S109: 13554996 | T109: 186369.5504 | U109: 141809.1744 | V109: 144.404654 | W109: 0.571906919 | X109: 0.428093081 | Y109: 10358648.5 | Z109: 142422.5182 | AA109: 108369.74 | AB109: 200.2 | AC109: 130.8568005
A110: 2008-01-01 | B110: 47 | C110: 7693060 | D110: 105000 | E110: 163500 | F110: 119 | G110: 5843962.618 | H110: 79762.28898 | I110: 124201.2786 | J110: 26 | K110: 3107280 | L110: 119510 | M110: 105000 | N110: 86 | O110: 2360416.812 | P110: 90784.67767 | Q110: 79762.28898 | R110: 73 | S110: 10800340 | T110: 109174.5568 | U110: 146669.4299 | V110: 109.5058322 | W110: 0.7122979462 | X110: 0.2877020538 | Y110: 8204379.43 | Z110: 82933.45284 | AA110: 111416.09 | AB110: 201.4 | AC110: 131.6411569
A111: 2008-02-01 | B111: 58 | C111: 8253150 | D111: 142295 | E111: 135000 | F111: 111 | G111: 6253903.783 | H111: 107825.4047 | I111: 102297.5483 | J111: 23 | K111: 2726791 | L111: 118556 | M111: 111000 | N111: 128 | O111: 2066252.104 | P111: 89836.94915 | Q111: 84111.31748 | R111: 81 | S111: 10979941 | T111: 136399.5866 | U111: 129039.7691 | V111: 115.2218302 | W111: 0.7516570444 | X111: 0.2483429556 | Y111: 8320155.887 | Z111: 103358.0985 | AA111: 97781.12598 | AB111: 201.9 | AC111: 131.9679721
A112: 2008-03-01 | B112: 81 | C112: 11951663 | D112: 147551 | E112: 138000 | F112: 132 | G112: 8976459.705 | H112: 110820.1935 | I112: 103646.7845 | J112: 31 | K112: 4800590 | L112: 154857 | M112: 140000 | N112: 157 | O112: 3605548.675 | P112: 116307.4645 | Q112: 105148.9118 | R112: 112 | S112: 16752253 | T112: 149644.6354 | U112: 138573.1277 | V112: 139.1640961 | W112: 0.7134361569 | X112: 0.2865638431 | Y112: 12582008.38 | Z112: 112392.6469 | AA112: 104077.2399 | AB112: 203.7 | AC112: 133.1445068
A113: 2008-04-01 | B113: 99 | C113: 13763376 | D113: 139024 | E113: 126000 | F113: 99 | G113: 10251615.55 | H113: 103551.6722 | I113: 93850.77897 | J113: 43 | K113: 5747165 | L113: 133655 | M113: 123717 | N113: 119 | O113: 4280761.207 | P113: 99552.58621 | Q113: 92150.29223 | R113: 142 | S113: 19510541 | T113: 137442.4688 | U113: 125327.5031 | V113: 104.8913436 | W113: 0.7054328222 | X113: 0.2945671778 | Y113: 14532376.75 | Z113: 102373.6727 | AA113: 93349.87139 | AB113: 205.4 | AC113: 134.2556784
A114: 2008-05-01 | B114: 132 | C114: 20338956 | D114: 154083 | E114: 143500 | F114: 130 | G114: 15017812.63 | H114: 113771.3078 | I114: 105957.0664 | J114: 56 | K114: 8026872 | L114: 143337 | M114: 125000 | N114: 149 | O114: 5926855.818 | P114: 105836.711 | Q114: 92297.0962 | R114: 188 | S114: 28365828 | T114: 151042.131 | U114: 138264.9287 | V114: 135.3765597 | W114: 0.7170231731 | X114: 0.2829768269 | Y114: 20944668.45 | Z114: 111526.0008 | AA114: 102091.6114 | AB114: 207.2 | AC114: 135.4322131
A115: 2008-06-01 | B115: 117 | C115: 18336825 | D115: 156725 | E115: 135000 | F115: 118 | G115: 13422877.6 | H115: 114725.4496 | I115: 98822.36842 | J115: 56 | K115: 8471736 | L115: 151281 | M115: 131200 | N115: 117 | O115: 6201459.379 | P115: 110740.3461 | Q115: 96040.70175 | R115: 173 | S115: 26808561 | T115: 155004.6491 | U115: 133799.1673 | V115: 117.6839914 | W115: 0.6839913936 | X115: 0.3160086064 | Y115: 19624336.98 | Z115: 113466.1226 | AA115: 97943.33781 | AB115: 209 | AC115: 136.6087478
A116: 2008-07-01 | B116: 100 | C116: 16126000 | D116: 161260 | E116: 148000 | F116: 107 | G116: 11742711.17 | H116: 117427.1117 | I116: 107771.3787 | J116: 61 | K116: 9009517 | L116: 147697 | M116: 125000 | N116: 90 | O116: 6560595.058 | P116: 107550.7387 | Q116: 91023.12391 | R116: 161 | S116: 25135517 | T116: 156398.5094 | U116: 139755.9328 | V116: 100.906559 | W116: 0.6415622961 | X116: 0.3584377039 | Y116: 18303306.23 | Z116: 113887.0472 | AA116: 101768.1727 | AB116: 210.1 | AC116: 137.3277412
A117: 2008-08-01 | B117: 102 | C117: 16440258 | D117: 161179 | E117: 151750 | F117: 116 | G117: 12011568.63 | H117: 117760.4768 | I117: 110871.4681 | J117: 51 | K117: 7097262 | L117: 139162 | M117: 127500 | N117: 139 | O117: 5185396.094 | P117: 101674.4332 | Q117: 93153.95177 | R117: 153 | S117: 23537520 | T117: 154540.22 | U117: 144437.9041 | V117: 122.9351837 | W117: 0.6984702721 | X117: 0.3015297279 | Y117: 17196964.73 | Z117: 112910.0565 | AA117: 105529.1102 | AB117: 209.4 | AC117: 136.8701999
A118: 2008-09-01 | B118: 65 | C118: 10541765 | D118: 162181 | E118: 132500 | F118: 130 | G118: 7705696.115 | H118: 118549.171 | I118: 96853.30068 | J118: 44 | K118: 5756388 | L118: 130827 | M118: 118000 | N118: 149 | O118: 4207737.191 | P118: 95630.39071 | Q118: 86254.26023 | R118: 109 | S118: 16298153 | T118: 151106.9974 | U118: 127378.7064 | V118: 136.7106605 | W118: 0.6468073407 | X118: 0.3531926593 | Y118: 11913433.31 | Z118: 110454.426 | AA118: 93109.7974 | AB118: 209.3 | AC118: 136.8048369
A119: 2008-10-01 | B119: 90 | C119: 13033080 | D119: 144812 | E119: 130750 | F119: 123 | G119: 9679381.704 | H119: 107548.6856 | I119: 97105.14765 | J119: 49 | K119: 7003619 | L119: 142931 | M119: 129000 | N119: 135 | O119: 5201433.706 | P119: 106151.7083 | Q119: 95805.46117 | R119: 139 | S119: 20036699 | T119: 144154.5161 | U119: 130138.3058 | V119: 127.1944747 | W119: 0.6504604376 | X119: 0.3495395624 | Y119: 14880815.41 | Z119: 107060.3868 | AA119: 96650.85581 | AB119: 206 | AC119: 134.6478566
A120: 2008-11-01 | B120: 46 | C120: 6648288 | D120: 144528 | E120: 129750 | F120: 136 | G120: =(C120/AC120)*100 -> 5042799.512 | H120: =(D120/AC120)*100 -> 109626.0764 | I120: =(E120/AC120)*100 -> 98416.80094 | J120: 22 | K120: 2582624 | L120: 117392 | M120: 111250 | N120: 119 | O120: =(K120/AC120)*100 -> 1958948.687 | P120: =(L120/AC120)*100 -> 89043.12213 | Q120: =(M120/AC120)*100 -> 84384.34763 | R120: 68 | S120: 9230912 | T120: 136935.8916 | U120: 124574.0711 | V120: 131.243741 | W120: 0.7202200606 | X120: 0.2797799394 | Y120: =(S120/AC120)*100 -> 7001748.199 | Z120: =(T120/AC120)*100 -> 103867.3787 | AA120: =(U120/AC120)*100 -> 94490.802 | AB120: 201.7 | AC120: 131.837246
A121: 2008-12-01 | B121: 46 | C121: 6307152 | D121: 137112 | E121: 125250 | F121: 122 | G121: 4834377.236 | H121: 105095.1573 | I121: 96003.03732 | J121: 21 | K121: 2506308 | L121: 119348 | M121: 95000 | N121: 144 | O121: 1921063.317 | P121: 91479.20558 | Q121: 72816.67502 | R121: 67 | S121: 8813460 | T121: 132060.4022 | U121: 116647.7238 | V121: 128.2562009 | W121: 0.7156272338 | X121: 0.2843727662 | Y121: 6755440.554 | Z121: 101223.1515 | AA121: 89409.46734 | AB121: 199.6 | AC121: =(AB121/$AD$14)*100 -> 130.4646223
A122: 2009-01-01 | B122: 29 | C122: 3529039 | D122: 121691 | E122: 113000 | F122: 125 | G122: 2688812.542 | H122: 92717.67385 | I122: 86095.90803 | J122: 13 | K122: 1678690 | L122: 129130 | M122: 117500 | N122: 113 | O122: 1279011.857 | P122: 98385.52747 | Q122: 89524.50614 | R122: 42 | S122: 5207729 | T122: 124088.931 | U122: 114450.5565 | V122: 121.1318494 | W122: 0.6776541176 | X122: 0.3223458824 | Y122: 3967824.399 | Z122: 94544.68313 | AA122: 87201.10252 | AB122: 200.8 | AC122: 131.2489787
A123: 2009-02-01 | B123: 38 | C123: 4884596 | D123: 128542 | E123: 124000 | F123: 135 | G123: 3708697.186 | H123: 97597.29438 | I123: 94148.71795 | J123: 25 | K123: 3225050 | L123: 129002 | M123: 108500 | N123: 170 | O123: 2448663.894 | P123: 97946.55575 | Q123: 82380.12821 | R123: 63 | S123: 8109646 | T123: 128724.9331 | U123: 117835.9486 | V123: 148.9188258 | W123: 0.6023192628 | X123: 0.3976807372 | Y123: 6157361.08 | Z123: 97736.1889 | AA123: 89468.5765 | AB123: 201.5 | AC123: 131.70652
A124: 2009-03-01 | B124: 62 | C124: 9254182 | D124: 149261 | E124: 142500 | F124: 124 | G124: 7008245.32 | H124: 113036.2148 | I124: 107916.0706 | J124: 37 | K124: 5404442 | L124: 146066 | M124: 116000 | N124: 191 | O124: 4092815.049 | P124: 110616.6229 | Q124: 87847.468 | R124: 99 | S124: 14658624 | T124: 148083.0455 | U124: 132729.7983 | V124: 148.7020194 | W124: 0.6313131437 | X124: 0.3686868563 | Y124: 11101060.37 | Z124: 112144.1431 | AA124: 100517.0406 | AB124: 202.021 | AC124: 132.0470614
A125: 2009-04-01 | B125: 106 | C125: 15031012 | D125: 141802 | E125: 129925 | F125: 161 | G125: 11367373.1 | H125: 107239.3688 | I125: 98257.25305 | J125: 45 | K125: 5635440 | L125: 125232 | M125: 114500 | N125: 183 | O125: 4261865.339 | P125: 94708.11864 | Q125: 86591.92206 | R125: 151 | S125: 20666452 | T125: 137283.6027 | U125: 125718.8275 | V125: 166.9990791 | W125: 0.7273145869 | X125: 0.2726854131 | Y125: 15629238.44 | Z125: 103822.2797 | AA125: 95076.28745 | AB125: 202.3 | AC125: 132.2294243
A126: 2009-05-01 | B126: 130 | C126: 19059170 | D126: 146609 | E126: 130000 | F126: 127 | G126: 14349872.95 | H126: 110383.6381 | I126: 97878.5269 | J126: 46 | K126: 6683478 | L126: 145293 | M126: 113250 | N126: 151 | O126: 5032069.086 | P126: 109392.8062 | Q126: 85267.25517 | R126: 176 | S126: 25742648 | T126: 146267.3313 | U126: 125651.2533 | V126: 133.2310401 | W126: 0.7403733291 | X126: 0.2596266709 | Y126: 19381942.04 | Z126: 110126.3917 | AA126: 94604.30441 | AB126: 203.2 | AC126: 132.8176916
A127: 2009-06-01 | B127: 103 | C127: 15200637 | D127: 147579 | E127: 128500 | F127: 143 | G127: 11322155.74 | H127: 109923.8421 | I127: 95712.8976 | J127: 66 | K127: 10508982 | L127: 159227 | M127: 138000 | N127: 172 | O127: 7827588.467 | P127: 118599.8253 | Q127: 102788.9484 | R127: 169 | S127: 25709619 | T127: 152340.1994 | U127: 132383.1898 | V127: 154.8539477 | W127: 0.5912431841 | X127: 0.4087568159 | Y127: 19149744.21 | Z127: 113470.2094 | AA127: 98605.28159 | AB127: 205.4 | AC127: 134.2556784
A128: 2009-07-01 | B128: 122 | C128: 18047826 | D128: 147933 | E128: 132350 | F128: 112 | G128: 13482260.64 | H128: 110510.3331 | I128: 98869.37052 | J128: 53 | K128: 8901138 | L128: 167946 | M128: 138300 | N128: 167 | O128: 6649413.759 | P128: 125460.637 | Q128: 103314.1968 | R128: 175 | S128: 26948964 | T128: 154543.2161 | U128: 134315.2619 | V128: 130.1662861 | W128: 0.6697038892 | X128: 0.3302961108 | Y128: 20131674.4 | Z128: 115448.3603 | AA128: 100337.4793 | AB128: 204.8 | AC128: 133.8635002
A129: 2009-08-01 | B129: 121 | C129: 18049449 | D129: 149169 | E129: 130000 | F129: 89 | G129: =(C129/AC129)*100 -> 13431008.2 | H129: =(D129/AC129)*100 -> 111000.0677 | I129: =(E129/AC129)*100 -> 96735.97601 | J129: 54 | K129: 7354044 | L129: 136186 | M129: 135750 | N129: 119 | O129: =(K129/AC129)*100 -> 5472312.492 | P129: =(L129/AC129)*100 -> 101339.1202 | Q129: =(M129/AC129)*100 -> 101014.6826 | R129: 175 | S129: 25403493 | T129: 145410.5581 | U129: 131664.5645 | V129: 97.68468443 | W129: 0.7105105192 | X129: 0.2894894808 | Y129: =(S129/AC129)*100 -> 18903320.69 | Z129: =(T129/AC129)*100 -> 108203.325 | AA129: =(U129/AC129)*100 -> 97974.61657 | AB129: 205.6 | AC129: 134.3864045
A130: 2009-09-01 | B130: 92 | C130: 13765408 | D130: 149624 | E130: 138500 | F130: 125 | G130: 10243155.22 | H130: 111338.6436 | I130: 103061.0206 | J130: 50 | K130: 5760300 | L130: 115206 | M130: 105690 | N130: 112 | O130: 4286371.097 | P130: 85727.42194 | Q130: 78646.34849 | R130: 142 | S130: 19525708 | T130: 139470.309 | U130: 128820.6868 | V130: 121.1648561 | W130: 0.7049889305 | X130: 0.2950110695 | Y130: 14529526.31 | Z130: 103783.0497 | AA130: 95858.42206 | AB130: 205.6 | AC130: 134.3864045
A131: 2009-10-01 | B131: 107 | C131: 15939362 | D131: 148966 | E131: 132700 | F131: 120 | G131: 11855078.07 | H131: 110795.1221 | I131: 98697.10339 | J131: 56 | K131: 7229936 | L131: 129106 | M131: 116500 | N131: 139 | O131: 5377345.447 | P131: 96024.02585 | Q131: 86648.17291 | R131: 163 | S131: 23169298 | T131: 142768.7242 | U131: 127644.8204 | V131: 125.9289144 | W131: 0.6879518749 | X131: 0.3120481251 | Y131: 17232423.51 | Z131: 106185.8292 | AA131: 94937.25722 | AB131: 205.7 | AC131: 134.4517675
A132: 2009-11-01 | B132: 94 | C132: 12189732 | D132: 129678 | E132: 123000 | F132: 129 | G132: 9044264.864 | H132: 96215.58366 | I132: 91260.79049 | J132: 42 | K132: 5444964 | L132: 129642 | M132: 120000 | N132: 137 | O132: 4039932.674 | P132: 96188.87318 | Q132: 89034.91756 | R132: 136 | S132: 17634696 | T132: 129666.8845 | U132: 122073.7072 | V132: 131.4701141 | W132: 0.6912357321 | X132: 0.3087642679 | Y132: 13084197.54 | Z132: 96207.33642 | AA132: 90573.52047 | AB132: 206.2 | AC132: 134.7785827
A133: 2009-12-01 | B133: 49 | C133: 8272376 | D133: 168824 | E133: 150300 | F133: 160 | G133: 6155664.356 | H133: 125625.8032 | I133: 111841.6707 | J133: 19 | K133: 2817244 | L133: 148276 | M133: 113900 | N133: 163 | O133: 2096375.754 | P133: 110335.566 | Q133: 84755.59744 | R133: 68 | S133: 11089620 | T133: 163603.9176 | U133: 141052.8228 | V133: 160.76213 | W133: 0.7459566694 | X133: 0.2540433306 | Y133: 8252040.109 | Z133: 121741.4204 | AA133: 104960.6345 | AB133: 205.6 | AC133: 134.3864045
A134: 2010-01-01 | B134: 29 | C134: 4082678 | D134: 140782 | E134: 119000 | F134: 155 | G134: 3023309.35 | H134: 104252.0465 | I134: 88122.01517 | J134: 21 | K134: 2678445 | L134: 127545 | M134: 106000 | N134: 97 | O134: 1983445.134 | P134: 94449.76827 | Q134: 78495.2404 | R134: 50 | S134: 6761123 | T134: 135538.1113 | U134: 113849.9998 | V134: 132.0230759 | W134: 0.6038461362 | X134: 0.3961538638 | Y134: 5006754.484 | Z134: 100368.8361 | AA134: 84308.33115 | AB134: 206.6 | AC134: 135.0400349
A135: 2010-02-01 | B135: 50 | C135: 7185600 | D135: 143712 | E135: 126250 | F135: 125 | G135: 5321088.674 | H135: 106421.7735 | I135: 93490.7934 | J135: 24 | K135: 2644872 | L135: 110203 | M135: 108750 | N135: 201 | O135: 1958583.618 | P135: 81607.65073 | Q135: 80531.67352 | R135: 74 | S135: 9830472 | T135: 134696.4598 | U135: 121541.6544 | V135: 145.4476725 | W135: 0.7309516776 | X135: 0.2690483224 | Y135: 7279672.291 | Z135: 99745.57538 | AA135: 90004.16394 | AB135: 206.6 | AC135: 135.0400349
A136: 2010-03-01 | B136: 100 | C136: 13438900 | D136: 134389 | E136: 128450 | F136: 149 | G136: 9913402.648 | H136: 99134.02648 | I136: 94753.0356 | J136: 48 | K136: 5753280 | L136: 119860 | M136: 102000 | N136: 153 | O136: 4243991.784 | P136: 88416.4955 | Q136: 75241.80328 | R136: 148 | S136: 19192180 | T136: 130033.6112 | U136: 120521.0281 | V136: 150.1990884 | W136: 0.7002279053 | X136: 0.2997720947 | Y136: 14157394.43 | Z136: 95921.20977 | AA136: 88904.11262 | AB136: 207.4 | AC136: 135.5629392
A137: 2010-04-01 | B137: 126 | C137: 18091962 | D137: 143587 | E137: 127750 | F137: 135 | G137: 13326525.85 | H137: 105766.0782 | I137: 94100.55569 | J137: 63 | K137: 8296155 | L137: 131685 | M137: 115000 | N137: 150 | O137: 6110941.648 | P137: 96999.07378 | Q137: 84708.9151 | R137: 189 | S137: 26388117 | T137: 139845.1325 | U137: 123741.53 | V137: 139.7158471 | W137: 0.6856101934 | X137: 0.3143898066 | Y137: 19437467.5 | Z137: 103009.8214 | AA137: 91147.91962 | AB137: 207.7 | AC137: 135.7590283
A138: 2010-05-01 | B138: 120 | C138: 16967880 | D138: 141399 | E138: 129900 | F138: 105 | G138: 12480501.16 | H138: 104004.1763 | I138: 95546.23798 | J138: 75 | K138: 10739775 | L138: 143197 | M138: 128000 | N138: 144 | O138: 7899500.37 | P138: 105326.6716 | Q138: 94148.71795 | R138: 195 | S138: 27707655 | T138: =W138*D138+X138*L138 -> 142095.9235 | U138: =W138*E138+X138*M138 -> 129163.5403 | V138: =W138*F138+X138*N138 -> 120.1168053 | W138: =C138/(C138+K138) -> 0.6123896086 | X138: =(1-W138) -> 0.3876103914 | Y138: =(S138/AC138)*100 -> 20380001.53 | Z138: =(T138/AC138)*100 -> 104516.7892 | AA138: =(U138/AC138)*100 -> 95004.54469 | AB138: 208 | AC138: 135.9551174
A139: 2010-06-01 | B139: 120 | C139: 18154680 | D139: 151289 | E139: 131250 | F139: 133 | G139: 13359859.31 | H139: 111332.1609 | I139: 96585.64815 | J139: 64 | K139: 10474240 | L139: 163660 | M139: 138250 | N139: 112 | O139: =(K139/AC139)*100 -> 7707895.309 | P139: =(L139/AC139)*100 -> 120435.8642 | Q139: =(M139/AC139)*100 -> 101736.8827 | R139: 184 | S139: 28628920 | T139: 155815.0814 | U139: 133811.0355 | V139: 125.3168935 | W139: 0.6341377879 | X139: 0.3658622121 | Y139: 21067754.62 | Z139: 114662.8619 | AA139: 98470.29022 | AB139: 207.9 | AC139: 135.8897543
A140: 2010-07-01 | B140: 67 | C140: 10478599 | D140: 156397 | E140: 140000 | F140: 107 | G140: 7699991.956 | H140: 114925.2531 | I140: 102876.2408 | J140: 37 | K140: 5770224 | L140: 155952 | M140: 147000 | N140: 165 | O140: 4240135.383 | P140: 114598.2536 | Q140: 108020.0528 | R140: 104 | S140: 16248823 | T140: 156238.9732 | U140: 142485.815 | V140: 127.5967529 | W140: 0.644883571 | X140: 0.355116429 | Y140: 11940127.34 | Z140: 114809.1302 | AA140: 104702.893 | AB140: 208.2 | AC140: 136.0858435
A141: 2010-08-01 | B141: 75 | C141: 10906500 | D141: 145420 | E141: 130000 | F141: 119 | G141: 7999058.545 | H141: 106654.1139 | I141: 95344.75871 | J141: 40 | K141: 6318200 | L141: 157955 | M141: 127450 | N141: 149 | O141: 4633901.957 | P141: 115847.5489 | Q141: 93474.5346 | R141: 115 | S141: 17224700 | T141: 150017.969 | U141: 129064.6333 | V141: 130.0043136 | W141: 0.6331895476 | X141: 0.3668104524 | Y141: 12632960.5 | Z141: 110026.362 | AA141: 94658.74096 | AB141: 208.6 | AC141: 136.3472956
A142: 2010-09-01 | B142: 60 | C142: 8988540 | D142: 149809 | E142: 135500 | F142: 113 | G142: 6586071.434 | H142: 109767.8572 | I142: 99283.38522 | J142: 35 | K142: 4717440 | L142: 134784 | M142: 113000 | N142: 112 | O142: 3456556.552 | P142: 98758.75862 | Q142: 82797.21424 | R142: 95 | S142: 13705980 | T142: 144637.5686 | U142: 127755.7599 | V142: 112.6558116 | W142: 0.6558115509 | X142: 0.3441884491 | Y142: 10042627.99 | Z142: 105978.6527 | AA142: 93609.0356 | AB142: 208.8 | AC142: 136.4780217
A143: 2010-10-01 | B143: 52 | C143: 7600996 | D143: 146173 | E143: 133750 | F143: 129 | G143: 5572060.596 | H143: 107155.0115 | I143: 98048.08537 | J143: 39 | K143: 6733389 | L143: 172651 | M143: 153900 | N143: 129 | O143: 4936044.108 | P143: 126565.2335 | Q143: 112819.4418 | R143: 91 | S143: 14334385 | T143: 158610.6926 | U143: 143215.1977 | V143: 129 | W143: 0.53026314 | X143: 0.46973686 | Y143: 10508104.7 | Z143: 116272.7082 | AA143: 104986.7359 | AB143: 208.7 | AC143: 136.4126586
A144: 2010-11-01 | B144: 66 | C144: 10684212 | D144: 161882 | E144: 134250 | F144: 136 | G144: 7828522.035 | H144: 118613.9702 | I144: 98367.48683 | J144: 35 | K144: 5046930 | L144: 144198 | M144: 118000 | N144: 150 | O144: 3697980.04 | P144: 105656.5726 | Q144: 86460.80779 | R144: 101 | S144: 15731142 | T144: 156208.546 | U144: 129036.6078 | V144: 140.4915379 | W144: 0.6791758666 | X144: 0.3208241334 | Y144: 11526502.07 | Z144: 114456.9243 | AA144: 94547.53684 | AB144: 208.8 | AC144: 136.4780217
A145: 2010-12-01 | B145: 72 | C145: 10593576 | D145: 147133 | E145: 137991 | F145: 119 | G145: 7743568.314 | H145: 107549.5599 | I145: 100867.0477 | J145: 28 | K145: 3854144 | L145: 137648 | M145: 125250 | N145: 104 | O145: 2817257.115 | P145: 100616.3255 | Q145: 91553.78046 | R145: 100 | S145: 14447720 | T145: 144602.7353 | U145: 134592.1489 | V145: 114.9985271 | W145: 0.7332351402 | X145: 0.2667648598 | Y145: 10560825.43 | Z145: 105700.0166 | AA145: 98382.59524 | AB145: 209.3 | AC145: 136.8048369
A146: 2011-01-01 | B146: 28 | C146: 3519292 | D146: 125689 | E146: 105500 | F146: 124 | G146: 2559041.581 | H146: 91394.34217 | I146: 76713.97734 | J146: 31 | K146: 3691046 | L146: 119066 | M146: 110000 | N146: 113 | O146: 2683931.936 | P146: 86578.44954 | Q146: 79986.13752 | R146: 59 | S146: 7210338 | T146: 122298.6183 | U146: 107803.5962 | V146: 118.3689871 | W146: 0.48808974 | X146: 0.51191026 | Y146: 5242973.516 | Z146: 88929.03732 | AA146: 78389.02971 | AB146: 210.4 | AC146: 137.5238303
A147: 2011-02-01 | B147: 35 | C147: 4493988 | D147: 124833 | E147: 100000 | F147: 139 | G147: 3256952.696 | H147: 90470.90822 | I147: 72473.55124 | J147: 24 | K147: 2267136 | L147: 94464 | M147: 79137 | N147: 119 | O147: 1643073.971 | P147: 68461.41544 | Q147: 57353.39424 | R147: 59 | S147: 6761124 | T147: 114649.6853 | U147: 93004.23149 | V147: 132.2936121 | W147: 0.6646806064 | X147: 0.3353193936 | Y147: 4900026.667 | Z147: 83090.69845 | AA147: 67403.46936 | AB147: 211.1 | AC147: 137.9813715
A148: 2011-03-01 | B148: 57 | C148: 7468596 | D148: 131028 | E148: 115000 | F148: 156 | G148: 5364473.942 | H148: 94113.57793 | I148: 82601.13459 | J148: 28 | K148: 4378808 | L148: 156386 | M148: 121450 | N148: 142 | O148: 3145169.643 | P148: 112327.4872 | Q148: 87233.98083 | R148: 85 | S148: 11847404 | T148: 140400.3328 | U148: 117383.9241 | V148: 150.8255912 | W148: 0.6303993685 | X148: 0.3696006315 | Y148: 8509643.585 | Z148: 100845.4503 | AA148: 84313.43748 | AB148: 213 | AC148: 139.2232692
A149: 2011-04-01 | B149: 66 | C149: 8899110 | D149: 134835 | E149: 125700 | F149: 116 | G149: 6347271.192 | H149: 96170.77564 | I149: 89655.25641 | J149: 44 | K149: 5872900 | L149: 133475 | M149: 112050 | N149: 171 | O149: 4188833.376 | P149: 95200.75855 | Q149: 79919.42308 | R149: 110 | S149: 14772010 | T149: 134294.3055 | U149: 120273.1769 | V149: 137.8663202 | W149: 0.6024305426 | X149: 0.3975694574 | Y149: 10536104.57 | Z149: 95785.12647 | AA149: 85784.58643 | AB149: 214.5 | AC149: 140.2037148
A150: 2011-05-01 | B150: 100 | C150: 13887900 | D150: 138879 | E150: 130500 | F150: 113 | G150: 9841282.851 | H150: 98412.82851 | I150: 92475.27791 | J150: 45 | K150: 6903810 | L150: 153418 | M150: 125000 | N150: 142 | O150: 4892197.305 | P150: 108715.4957 | Q150: 88577.8524 | R150: 145 | S150: 20791710 | T150: 143706.6209 | U150: 128673.7454 | V150: 122.6293422 | W150: 0.6679537181 | X150: 0.3320462819 | Y150: 14733480.16 | Z150: 101833.7908 | AA150: 91181.15226 | AB150: 215.9 | AC150: 141.1187973
A151: 2011-06-01 | B151: 108 | C151: 16184664 | D151: 149858 | E151: 137250 | F151: 114 | G151: 11463512.59 | H151: 106143.6351 | I151: 97213.45486 | J151: 60 | K151: 8722740 | L151: 145379 | M151: 145000 | N151: 153 | O151: 6178270.975 | P151: 102971.1829 | Q151: 102702.7392 | R151: 168 | S151: 24907404 | T151: 148289.4241 | U151: 139964.102 | V151: 127.6580617 | W151: 0.6497932904 | X151: 0.3502067096 | Y151: 17641783.57 | Z151: 105032.6211 | AA151: 99135.83907 | AB151: 216 | AC151: 141.1841604
A152: 2011-07-01 | B152: 109 | C152: 16139739 | D152: 148071 | E152: 132000 | F152: 118 | G152: 11426402.45 | H152: 104829.3803 | I152: 93451.64276 | J152: 62 | K152: 6283108 | L152: 120829 | M152: 113400 | N152: 115 | O152: 4448233.062 | P152: 85542.94351 | Q152: 80283.45673 | R152: 171 | S152: 22422847 | T152: 140437.5167 | U152: 126788.0923 | V152: 117.1593697 | W152: 0.7197899089 | X152: 0.2802100911 | Y152: 15874635.51 | Z152: 99425.12606 | AA152: 89761.78415 | AB152: 216.1 | AC152: 141.2495234
A153: 2011-08-01 | B153: 96 | C153: 14290176 | D153: 148856 | E153: 141500 | F153: 121 | G153: 10093618.85 | H153: 105141.863 | I153: 99946.07956 | J153: 52 | K153: 6651632 | L153: 127916 | M153: 116500 | N153: 107 | O153: 4698265.308 | P153: 90351.25592 | Q153: 82287.76162 | R153: 148 | S153: 20941808 | T153: 142204.9423 | U153: 133559.3867 | V153: 116.5532565 | W153: 0.6823754663 | X153: 0.3176245337 | Y153: 14791884.16 | Z153: 100444.0033 | AA153: 94337.36456 | AB153: 216.6 | AC153: 141.5763386
A154: 2011-09-01 | B154: 70 | C154: 11470690 | D154: 163867 | E154: 136000 | F154: 129 | G154: 8087188.852 | H154: 115531.2693 | I154: 95884.17819 | J154: 51 | K154: 6573135 | L154: 128885 | M154: 102000 | N154: 147 | O154: 4634262.115 | P154: 90867.8846 | Q154: 71913.13364 | R154: 121 | S154: 18043825 | T154: 151123.5042 | U154: 123614.2342 | V154: 135.5571701 | W154: 0.6357127715 | X154: 0.3642872285 | Y154: 12721450.97 | Z154: 106546.7133 | AA154: 87151.83281 | AB154: 217 | AC154: 141.8377907
A155: 2011-10-01 | B155: 77 | C155: 9484244 | D155: 123172 | E155: 117000 | F155: 116 | G155: 6726983.295 | H155: 87363.41941 | I155: 82985.74409 | J155: 37 | K155: 4725825 | L155: 127725 | M155: 95000 | N155: 153 | O155: 3351932.513 | P155: 90592.77063 | Q155: 67381.58708 | R155: 114 | S155: 14210069 | T155: 124686.1856 | U155: 109683.4873 | V155: 128.3050441 | W155: 0.6674312419 | X155: 0.3325687581 | Y155: 10078915.81 | Z155: 88437.40073 | AA155: 77796.28897 | AB155: 215.7 | AC155: 140.9880712
A156: 2011-11-01 | B156: 58 | C156: 8323058 | D156: 143501 | E156: 135950 | F156: 129 | G156: 5906115.562 | H156: 101829.5787 | I156: 96471.32228 | J156: 39 | K156: 5529186 | L156: 141774 | M156: 122000 | N156: 85 | O156: 3923559.283 | P156: 100604.0842 | Q156: 86572.27891 | R156: 97 | S156: 13852244 | T156: 142811.6601 | U156: 130381.7942 | V156: 111.4372005 | W156: 0.6008454659 | X156: 0.3991545341 | Y156: 9829674.845 | Z156: 101340.417 | AA156: 92520.07424 | AB156: 215.6 | AC156: 140.9227082
A157: 2011-12-01 | B157: 70 | C157: 9000460 | D157: 128578 | E157: 120000 | F157: 135 | G157: 6398677.399 | H157: 91409.67712 | I157: 85311.33829 | J157: 35 | K157: 5252520 | L157: 150072 | M157: 110000 | N157: 127 | O157: 3734162.588 | P157: 106690.3597 | Q157: 78202.0601 | R157: 105 | S157: 14252980 | T157: 136498.9867 | U157: 116314.7917 | V157: 132.0518334 | W157: 0.6314791714 | X157: 0.3685208286 | Y157: 10132839.99 | Z157: 97040.92691 | AA157: 82691.4212 | AB157: 215.2 | AC157: 140.6612561
A158: 2012-01-01 | B158: 36 | C158: 5161536 | D158: 143376 | E158: 132450 | F158: 133 | G158: 3649131.216 | H158: 101364.756 | I158: 93640.23221 | J158: 22 | K158: 2716758 | L158: 123489 | M158: 113450 | N158: 151 | O158: 1920708.569 | P158: 87304.93496 | Q158: 80207.50732 | R158: 58 | S158: 7878294 | T158: 136518.149 | U158: 125898.0229 | V158: 139.2071362 | W158: 0.6551590992 | X158: 0.3448409008 | Y158: 5569839.785 | Z158: 96516.35465 | AA158: 89008.07926 | AB158: 216.4 | AC158: 141.4456125
A159: 2012-02-01 | B159: 57 | C159: 7859502 | D159: 137886 | E159: 129900 | F159: 124 | G159: 5543745.091 | H159: 97258.6858 | I159: 91625.71462 | J159: 22 | K159: 1996236 | L159: 90738 | M159: 84450 | N159: 96 | O159: 1408056.582 | P159: 64002.57192 | Q159: 59567.29484 | R159: 79 | S159: 9855738 | T159: 128336.3818 | U159: 120694.3042 | V159: 118.3287242 | W159: 0.7974544372 | X159: 0.2025455628 | Y159: 6951801.673 | Z159: 90522.8075 | AA159: 85132.42394 | AB159: 216.9 | AC159: 141.7724277
A160: 2012-03-01 | B160: 70 | C160: 8613640 | D160: 123052 | E160: 114000 | F160: 132 | G160: 6017420.729 | H160: 85963.15327 | I160: 79639.49772 | J160: 42 | K160: 6354726 | L160: 151303 | M160: 131450 | N160: 171 | O160: 4439361.287 | P160: 105699.0783 | Q160: 91829.9296 | R160: 112 | S160: 14968366 | T160: 135045.785 | U160: 121408.2882 | V160: 148.5572056 | W160: 0.5754562656 | X160: 0.4245437344 | Y160: 10456782.02 | Z160: 94341.91657 | AA160: 84814.86919 | AB160: 219 | AC160: 143.1450515
A161: 2012-04-01 | B161: 80 | C161: 10032640 | D161: 125408 | E161: 110500 | F161: 91 | G161: 6995944.916 | H161: 87449.31146 | I161: 77053.68809 | J161: 56 | K161: 7871696 | L161: 140566 | M161: 119950 | N161: 124 | O161: 5489078.808 | P161: 98019.26443 | Q161: 83643.34739 | R161: 136 | S161: 17904336 | T161: 132072.261 | U161: 114654.7214 | V161: 105.5085508 | W161: 0.5603469461 | X161: 0.4396530539 | Y161: 12485023.72 | Z161: 92096.42356 | AA161: 79950.85192 | AB161: 219.4 | AC161: 143.4065036
A162: 2012-05-01 | B162: 105 | C162: 15967665 | D162: 152073 | E162: 128500 | F162: 112 | G162: 11149793.16 | H162: 106188.5063 | I162: 89728.11121 | J162: 65 | K162: 7810465 | L162: 120161 | M162: 107200 | N162: 85 | O162: 5453838.694 | P162: 83905.21067 | Q162: 74854.89122 | R162: 170 | S162: 23778130 | T162: 141590.7813 | U162: 121503.5329 | V162: 103.1312389 | W162: 0.6715273657 | X162: 0.3284726343 | Y162: 16603631.85 | Z162: 98869.05347 | AA162: 84842.66546 | AB162: 219.1 | AC162: 143.2104145
A163: 2012-06-01 | B163: 140 | C163: 22590400 | D163: 161360 | E163: 138750 | F163: 118 | G163: 15781474.64 | H163: 112724.8189 | I163: 96929.65183 | J163: 79 | K163: 12214032 | L163: 154608 | M163: 137500 | N163: 139 | O163: 8532626.084 | P163: 108007.9251 | Q163: 96056.41172 | R163: 219 | S163: 34804432 | T163: 158990.4988 | U163: 138311.3335 | V163: 125.369598 | W163: 0.6490667625 | X163: 0.3509332375 | Y163: 24314100.73 | Z163: 111069.5041 | AA163: 96623.20285 | AB163: 219 | AC163: 143.1450515
A164: 2012-07-01 | B164: 100 | C164: 15397500 | D164: 153975 | E164: 139037 | F164: 76 | G164: 10756571.63 | H164: 107565.7163 | I164: 97130.14775 | J164: 50 | K164: 8238350 | L164: 164767 | M164: 136545 | N164: 78 | O164: =(K164/AC164)*100 -> 5755246.105 | P164: =(L164/AC164)*100 -> 115104.9221 | Q164: =(M164/AC164)*100 -> 95389.25628 | R164: 150 | S164: 23635850 | T164: 157736.5856 | U164: 138168.4055 | V164: 76.6971063 | W164: 0.6514468487 | X164: 0.3485531513 | Y164: =(S164/AC164)*100 -> 16511817.74 | Z164: =(T164/AC164)*100 -> 110193.5303 | AA164: =(U164/AC164)*100 -> 96523.35454 | AB164: 219 | AC164: 143.1450515
A165: 2012-08-01 | B165: 110 | C165: 17478450 | D165: 158895 | E165: 150000 | F165: 97 | G165: 12127243.52 | H165: 110247.6684 | I165: 104075.9637 | J165: 67 | K165: 9324591 | L165: 139173 | M165: 133000 | N165: 122 | O165: 6469771.964 | P165: 96563.76066 | Q165: 92280.68783 | R165: 177 | S165: 26803041 | T165: 152033.8538 | U165: 144085.8186 | V165: 105.6973256 | W165: 0.6521069755 | X165: 0.3478930245 | Y165: 18597015.48 | Z165: 105487.1323 | AA165: 99972.46951 | AB165: 220.5 | AC165: 144.125497
A166: 2012-09-01 | B166: 79 | C166: 10922935 | D166: 138265 | E166: 137500 | F166: 103 | G166: 7558200.048 | H166: 95673.41833 | I166: 95144.07131 | J166: 56 | K166: 8059744 | L166: 143924 | M166: 126500 | N166: 110 | O166: 5576995.33 | P166: 99589.20232 | Q166: 87532.54561 | R166: 135 | S166: 18982679 | T166: 140667.7215 | U166: 132829.5747 | V166: 105.9720888 | W166: 0.5754158831 | X166: 0.4245841169 | Y166: 13135195.38 | Z166: 97335.99802 | AA166: 91912.33839 | AB166: 221.1 | AC166: 144.5176753
A167: 2012-10-01 | B167: 93 | C167: 14281266 | D167: 153562 | E167: 132700 | F167: 102 | G167: 9913406.023 | H167: 106595.7637 | I167: 92114.3111 | J167: 47 | K167: 6106616 | L167: 129928 | M167: 125000 | N167: 125 | O167: 4238935.388 | P167: 90190.11464 | Q167: 86769.32093 | R167: 140 | S167: 20387882 | T167: 146483.1008 | U167: 130393.6818 | V167: 108.8890024 | W167: 0.7004781566 | X167: 0.2995218434 | Y167: 14152341.41 | Z167: 101681.9134 | AA167: 90513.36979 | AB167: 220.4 | AC167: 144.060134
A168: 2012-11-01 | B168: 88 | C168: 13349952 | D168: 151704 | E168: 135450 | F168: 96 | G168: 9304926.681 | H168: 105737.8032 | I168: 94408.75285 | J168: 38 | K168: 5421650 | L168: 142675 | M168: 123750 | N168: 100 | O168: 3778894.167 | P168: 99444.58333 | Q168: 86253.84396 | R168: 126 | S168: 18771602 | T168: 149096.2269 | U168: 132070.7836 | V168: 97.15528765 | W168: 0.711178087 | X168: 0.288821913 | Y168: 13083820.85 | Z168: 103920.1834 | AA168: 92053.43646 | AB168: 219.5 | AC168: 143.4718667
A169: 2012-12-01 | B169: 73 | C169: 9905151 | D169: 135687 | E169: 125000 | F169: 98 | G169: 6919660.092 | H169: 94789.86427 | I169: 87324.01065 | J169: 33 | K169: 5176413 | L169: 156861 | M169: 110500 | N169: 133 | O169: 3616201.152 | P169: 109581.8531 | Q169: 77194.42542 | R169: 106 | S169: 15081564 | T169: 142954.5068 | U169: 120023.196 | V169: 110.0129752 | W169: 0.6567721358 | X169: 0.3432278642 | Y169: 10535861.24 | Z169: 99866.887 | AA169: 83847.25475 | AB169: 219 | AC169: 143.1450515
A170: 2013-01-01 | B170: 49 | C170: 8575931 | D170: 175019 | E170: 143500 | F170: 106 | G170: 5982881.792 | H170: 122099.6284 | I170: 100110.8261 | J170: 29 | K170: 3200295 | L170: 110355 | M170: 106105 | N170: 114 | O170: 2232642.343 | P170: 76987.66701 | Q170: 74022.71223 | R170: 78 | S170: 11776226 | T170: 157445.9782 | U170: 133337.5735 | V170: 108.1740717 | W170: 0.7282410341 | X170: 0.2717589659 | Y170: 8215524.135 | Z170: 109840.0484 | AA170: 93021.14726 | AB170: 219.3 | AC170: 143.3411406
A171: 2013-02-01 | B171: 58 | C171: 7534432 | D171: 129904 | E171: 117450 | F171: 144 | G171: 5201738.759 | H171: 89685.15102 | I171: 81086.96412 | J171: 28 | K171: 3784480 | L171: 135160 | M171: 113500 | N171: 145 | O171: 2612788.369 | P171: 93313.87034 | Q171: 78359.90147 | R171: 86 | S171: 11318912 | T171: 131661.3444 | U171: 116129.3169 | V171: 144.3343502 | W171: 0.6656498434 | X171: 0.3343501566 | Y171: 7814527.129 | Z171: 90898.41389 | AA171: 80175.1703 | AB171: 221.6 | AC171: 144.8444904
A172: 2013-03-01 | B172: 82 | C172: 10577344 | D172: 128992 | E172: 122900 | F172: 108 | G172: 7286112.055 | H172: 88855.02506 | I172: 84658.60348 | J172: 31 | K172: 3721147 | L172: 120037 | M172: 116900 | N172: 169 | O172: 2563279.97 | P172: 82686.45066 | Q172: 80525.55531 | R172: 113 | S172: 14298491 | T172: 126661.4833 | U172: 121338.5148 | V172: 123.8750995 | W172: 0.7397524676 | X172: 0.2602475324 | Y172: 9849392.026 | Z172: 87249.6688 | AA172: 83582.98789 | AB172: 222.1 | AC172: 145.1713056
A173: 2013-04-01 | B173: 111 | C173: 18173808 | D173: 163728 | E173: 138000 | F173: 90 | G173: 12530154.01 | H173: 112884.2704 | I173: 95145.78639 | J173: 64 | K173: 10069696 | L173: 157339 | M173: 157950 | N173: 117 | O173: 6942674.961 | P173: 108479.2963 | Q173: 108900.5577 | R173: 175 | S173: 28243504 | T173: 161450.1209 | U173: 145112.8014 | V173: 99.62634778 | W173: 0.6434686008 | X173: 0.3565313992 | Y173: 19472828.97 | Z173: 111313.7588 | AA173: 100049.7942 | AB173: 221.9 | AC173: 145.0405796
A174: 2013-05-01 | B174: 124 | C174: 20489140 | D174: =165235 -> 165235 | E174: 143900 | F174: 72 | G174: 14050505.05 | H174: 113310.5246 | I174: 98679.96788 | J174: 73 | K174: 11269229 | L174: 154373 | M174: 139900 | N174: 100 | O174: 7727916.301 | P174: 105861.8671 | Q174: 95936.95279 | R174: 197 | S174: 31758369 | T174: 161380.6974 | U174: 142480.6287 | V174: 81.93559877 | W174: 0.6451571868 | X174: 0.3548428132 | Y174: 21778421.35 | Z174: 110667.422 | AA174: 97706.62869 | AB174: 223.1 | AC174: 145.824936
A175: 2013-06-01 | B175: 129 | C175: 21429609 | D175: 166121 | E175: 152000 | F175: 79 | G175: 14649470.94 | H175: 113561.7903 | I175: 103908.5493 | J175: 66 | K175: 11394174 | L175: 172639 | M175: 137875 | N175: 99 | O175: 7789158.492 | P175: 118017.5529 | Q175: 94252.57391 | R175: 195 | S175: 32823783 | T175: 168383.6041 | U175: 147096.7654 | V175: 85.94263303 | W175: 0.6528683485 | X175: 0.3471316515 | Y175: 22438629.43 | Z175: 115108.5265 | AA175: 100556.6546 | AB175: 223.8 | AC175: 146.2824773
A176: 2013-07-01 | B176: 137 | C176: 22583491 | D176: 164843 | E176: 147919 | F176: 66 | G176: 15500609.81 | H176: 113143.1373 | I176: 101527.0271 | J176: 54 | K176: 8644968 | L176: 160092 | M176: 145000 | N176: 113 | O176: 5933638.684 | P176: 109882.1978 | Q176: 99523.51578 | R176: 191 | S176: 31228459 | T176: 163527.7816 | U176: 147110.9338 | V176: 79.01100051 | W176: 0.7231702019 | X176: 0.2768297981 | Y176: 21434248.5 | Z176: 112240.4121 | AA176: 100972.3955 | AB176: 222.9 | AC176: 145.6942099
A177: 2013-08-01 | B177: 145 | C177: 23690226 | D177: 161158 | E177: 152000 | F177: 80 | G177: 16252946.9 | H177: 110564.2646 | I177: 104281.3154 | J177: 77 | K177: 14083146 | L177: 182898 | M177: 142000 | N177: 100 | O177: 9661901.249 | P177: 125479.237 | Q177: 97420.70254 | R177: 222 | S177: 37773372 | T177: 169263.3816 | U177: 148271.6736 | V177: 87.4566528 | W177: 0.6271673601 | X177: 0.3728326399 | Y177: 25914848.15 | Z177: 116125.0532 | AA177: 101723.455 | AB177: 223 | AC177: 145.759573
A178: 2013-09-01 | B178: 98 | C178: 16446752 | D178: 167824 | E178: 154500 | F178: 72 | G178: 11268320.64 | H178: 114982.8637 | I178: 105854.064 | J178: 80 | K178: 11587680 | L178: 144846 | M178: 123000 | N178: 125 | O178: 7939178.128 | P178: 99239.7266 | Q178: 84272.16749 | R178: 178 | S178: 28034432 | T178: 158326.3326 | U178: 141479.871 | V178: 93.90688365 | W178: 0.5866625727 | X178: 0.4133374273 | Y178: 19207498.77 | Z178: 108475.6359 | AA178: 96933.45844 | AB178: 223.3 | AC178: 145.9556621
A179: 2013-10-01 | B179: 88 | C179: 16275512 | D179: 184949 | E179: 160000 | F179: 69 | G179: 11206200.3 | H179: 127343.1852 | I179: 110165.0165 | J179: 52 | K179: 6592664 | L179: 126782 | M179: 118750 | N179: 107 | O179: 4539255.865 | P179: 87293.38201 | Q179: 81763.09818 | R179: 140 | S179: 22868176 | T179: 168180.0418 | U179: 148108.0419 | V179: 79.95501591 | W179: 0.7117101075 | X179: 0.2882898925 | Y179: 15745456.17 | Z179: 115797.2318 | AA179: 101977.0305 | AB179: 222.2 | AC179: 145.2366687
A180: 2013-11-01 | B180: 73 | C180: 11621016 | D180: 159192 | E180: 143000 | F180: 69 | G180: 8019479.505 | H180: 109855.8836 | I180: 98682.04029 | J180: 42 | K180: 6357792 | L180: 151376 | M180: 147450 | N180: 71 | O180: 4387411.793 | P180: 104462.1855 | Q180: 101752.915 | R180: 115 | S180: 17978808 | T180: 156428.0513 | U180: 144573.6402 | V180: 69.70725401 | W180: 0.6463729965 | X180: 0.3536270035 | Y180: 12406891.3 | Z180: 107948.5263 | AA180: 99767.98451 | AB180: 221.7 | AC180: 144.9098535
A181: 2013-12-01 | B181: 71 | C181: 10364225 | D181: 145975 | E181: 135000 | F181: 69 | G181: 7168354.686 | H181: 100962.7421 | I181: 93371.94846 | J181: 53 | K181: 6989216 | L181: 131872 | M181: 122000 | N181: 84 | O181: 4834049.749 | P181: 91208.48583 | Q181: 84380.57565 | R181: 124 | S181: 17353441 | T181: 140294.9211 | U181: 129764.1619 | V181: 75.04135168 | W181: 0.5972432211 | X181: 0.4027567789 | Y181: 12002404.43 | Z181: 97034.14924 | AA181: 89750.61211 | AB181: 221.2 | AC181: 144.5830383
A182: 2014-01-01 | B182: 53 | C182: 8082076 | D182: 152492 | E182: 119500 | F182: 72 | G182: 5564762.724 | H182: 104995.5231 | I182: 82279.4967 | J182: 27 | K182: 4216995 | L182: 156185 | M182: 145000 | N182: 148 | O182: 2903533.274 | P182: 107538.2694 | Q182: 99837.0462 | R182: 80 | S182: 12299071 | T182: 153758.2227 | U182: 128243.211 | V182: 98.0581974 | W182: 0.6571289815 | X182: 0.3428710185 | Y182: 8468295.998 | Z182: 105867.3571 | AA182: 88299.47158 | AB182: 222.2 | AC182: 145.2366687
A183: 2014-02-01 | B183: 42 | C183: 6401850 | D183: 152425 | E183: 141000 | F183: 88 | G183: 4382235.8 | H183: 104338.9476 | I183: 96518.23266 | J183: 41 | K183: 5352632 | L183: 130552 | M183: 116500 | N183: 141 | O183: 3664018.303 | P183: 89366.30007 | Q183: 79747.33408 | R183: 83 | S183: 11754482 | T183: 142464.704 | U183: 129843.4485 | V183: 112.1345808 | W183: 0.5446305503 | X183: 0.4553694497 | Y183: 8046254.103 | Z183: 97520.86134 | AA183: 88881.2778 | AB183: 223.5 | AC183: 146.0863881
A184: 2014-03-01 | B184: 76 | C184: 11799228 | D184: 155253 | E184: 149000 | F184: 86 | G184: 8005248.59 | H184: 105332.2183 | I184: 101089.8374 | J184: 47 | K184: 7171495 | L184: 152585 | M184: 119000 | N184: 148 | O184: 4865538.681 | P184: 103522.0996 | Q184: 80736.17886 | R184: 123 | S184: 18970723 | T184: 154244.417 | U184: 137659.1117 | V184: 109.4378358 | W184: 0.6219703909 | X184: 0.3780296091 | Y184: 12870787.27 | Z184: 104647.9398 | AA184: 93395.55182 | AB184: 225.5 | AC184: 147.3936489
A185: 2014-04-01 | B185: 91 | C185: 13489658 | D185: 148238 | E185: 132500 | F185: 82 | G185: 9123807.516 | H185: 100261.6211 | I185: 89617.13454 | J185: 32 | K185: 4125792 | L185: 128931 | M185: 117750 | N185: 126 | O185: 2790503.07 | P185: 87203.22093 | Q185: 79640.88749 | R185: 123 | S185: 17615450 | T185: 143716.0226 | U185: 129045.3376 | V185: 92.30543347 | W185: 0.765785603 | X185: 0.234214397 | Y185: 11914310.59 | Z185: 97203.15575 | AA185: 87280.55385 | AB185: 226.2 | AC185: 147.8511902
A186: 2014-05-01 | B186: 145 | C186: 25108200 | D186: 173160 | E186: 137500 | F186: 82 | G186: 16952097.82 | H186: 116911.0194 | I186: 92834.74919 | J186: 69 | K186: 11770641 | L186: 170589 | M186: 142500 | N186: 111 | O186: 7947087.309 | P186: 115175.1784 | Q186: 96210.55825 | R186: 214 | S186: 36878841 | T186: 172339.4124 | U186: 139095.8529 | V186: 91.25594676 | W186: 0.6808294219 | X186: 0.3191705781 | Y186: 24899185.12 | Z186: 116356.99 | AA186: 93912.20812 | AB186: 226.6 | AC186: 148.1126423
A187: 2014-06-01 | B187: 165 | C187: 27145800 | D187: 164520 | E187: 148500 | F187: 79 | G187: 18247281.13 | H187: 110589.5826 | I187: 99821.01274 | J187: 87 | K187: 14220324 | L187: 163452 | M187: 152000 | N187: 103 | O187: 9558835.981 | P187: 109871.6779 | Q187: 102173.6965 | R187: 252 | S187: 41366124 | T187: 164152.8564 | U187: 149703.1858 | V187: 87.25041708 | W187: 0.6562326216 | X187: 0.3437673784 | Y187: 27806117.11 | Z187: 110342.7904 | AA187: 100629.7887 | AB187: 227.6 | AC187: 148.7662727
A188: 2014-07-01 | B188: 125 | C188: 18391875 | D188: 147135 | E188: 130000 | F188: 62 | G188: 12395610.61 | H188: 99164.88491 | I188: 87616.37298 | J188: 71 | K188: 11188677 | L188: 157587 | M188: 135000 | N188: 82 | O188: 7540856.132 | P188: 106209.2413 | Q188: 90986.23348 | R188: 196 | S188: 29580552 | T188: 151088.4101 | U188: 131891.2218 | V188: 69.56488723 | W188: 0.6217556386 | X188: 0.3782443614 | Y188: 19936466.75 | Z188: 101829.373 | AA188: 88891.00371 | AB188: 227 | AC188: 148.3740944
A189: 2014-08-01 | B189: 131 | C189: 21187940 | D189: 161740 | E189: 146000 | F189: 79 | G189: 14305287.97 | H189: 109200.6715 | I189: 98573.6246 | J189: 60 | K189: 8836680 | L189: 147278 | M189: 140750 | N189: 87 | O189: 5966188.883 | P189: 99436.48139 | Q189: 95029.02508 | R189: 191 | S189: 30024620 | T189: 157483.6242 | U189: 144454.8491 | V189: 81.35451573 | W189: 0.7056855341 | X189: 0.2943144659 | Y189: 20271476.85 | Z189: 106326.9291 | AA189: 97530.39768 | AB189: 226.6 | AC189: 148.1126423
A190: 2014-09-01 | B190: 104 | C190: 16249168 | D190: 156242 | E190: 144500 | F190: 90 | G190: 10956312.45 | H190: 105349.1581 | I190: 97431.88997 | J190: 59 | K190: 10347892 | L190: 175388 | M190: 134000 | N190: 130 | O190: 6977264.185 | P190: 118258.715 | Q190: 90352.06405 | R190: 163 | S190: 26597060 | T190: 163690.9714 | U190: 140414.8543 | V190: 105.5624599 | W190: 0.6109385022 | X190: 0.3890614978 | Y190: 17933576.63 | Z190: 110371.7697 | AA190: 94677.40229 | AB190: 226.9 | AC190: 148.3087314
A191: 2014-10-01 | B191: 107 | C191: 15952630 | D191: 149090 | E191: 132900 | F191: 76 | G191: 10808766.39 | H191: 101016.5083 | I191: 90046.91098 | J191: 76 | K191: 12198684 | L191: 160509 | M191: 143500 | N191: 95 | O191: 8265265.705 | P191: 108753.4961 | Q191: 97228.98214 | R191: 183 | S191: 28151314 | T191: 154038.1446 | U191: 137493.251 | V191: 84.2331857 | W191: 0.5666744366 | X191: 0.4333255634 | Y191: 19074032.1 | Z191: 104369.1429 | AA191: 93159.08601 | AB191: 225.8 | AC191: 147.589738
A192: 2014-11-01 | B192: 77 | C192: 11778613 | D192: 152969 | E192: 129000 | F192: 86 | G192: 8016146.058 | H192: 104105.793 | I192: 87793.26068 | J192: 54 | K192: 8180190 | L192: 151485 | M192: 125950 | N192: 100 | O192: 5567174.83 | P192: 103095.8302 | Q192: 85717.52854 | R192: 131 | S192: 19958803 | T192: 152360.7771 | U192: 127749.9461 | V192: 91.73795232 | W192: 0.5901462628 | X192: 0.4098537372 | Y192: 13583320.89 | Z192: 103691.8559 | AA192: 86942.5141 | AB192: 224.8 | AC192: 146.9361076
A193: 2014-12-01 | B193: 69 | C193: 9568023 | D193: 138667 | E193: 119000 | F193: 88 | G193: 6570142.664 | H193: 95219.45889 | I193: 81714.57959 | J193: 40 | K193: 5584560 | L193: 139614 | M193: 130500 | N193: 84 | O193: 3834789.686 | P193: 95869.74215 | Q193: 89611.3667 | R193: 109 | S193: 15152583 | T193: 139016.0216 | U193: 123238.3823 | V193: 86.52578006 | W193: 0.631445015 | X193: 0.368554985 | Y193: 10404932.35 | Z193: 95459.12403 | AA193: 84624.97985 | AB193: 222.8 | AC193: 145.6288469
A194: 2015-01-01 | B194: 50 | C194: =B194*D194 -> 8911050 | D194: 178221 | E194: 164900 | F194: 95 | J194: 23 | K194: =J194*L194 -> 3593934 | L194: 156258 | M194: 149900 | N194: 143 | R194: 73 | T194: 171908.831 | U194: 160588.9981 | V194: 108.7952061 | W194: 0.7125998722 | X194: 0.2874001278
A195: 2015-02-01 | B195: 56 | C195: =B195*D195 -> 10565240 | D195: 188665 | E195: 152400 | F195: 99 | G195: =(C195/AC195)*100 ->  | H195: =(D195/AC195)*100 ->  | I195: =(E195/AC195)*100 ->  | J195: 21 | K195: =J195*L195 -> 2266866 | L195: 107946 | M195: 95900 | N195: 110 | R195: 77 | T195: 174405.5202 | U195: 142418.9471 | V195: 100.9432138 | W195: 0.8233441962 | X195: 0.1766558038
A196: 2015-03-01 | B196: 121 | C196: 19019264 | D196: 157184 | E196: 149500 | F196: 88 | J196: 54 | K196: 8960490 | L196: 165935 | M196: 151700 | N196: 98 | R196: 175 | T196: 159986.4995 | U196: 150204.5479 | V196: 91.20249063 | W196: 0.6797509371 | X196: 0.3202490629
A197: 2015-04-01 | B197: 132 | C197: 21257676 | D197: 161043 | E197: 147700 | F197: 99 | J197: 60 | K197: 9539460 | L197: 158991 | M197: 148100 | N197: 105 | R197: 192 | T197: 160407.3899 | U197: 147823.9006 | V197: 100.8585092 | W197: 0.6902484699 | X197: 0.3097515301
A198: 2015-05-01 | B198: 176 | C198: 30411392 | D198: 172792 | E198: 149900 | F198: 80 | J198: 62 | K198: 10610184 | L198: 171132 | M198: 161700 | N198: 92 | R198: 238 | T198: 172362.6429 | U198: 152952.0566 | V198: 83.10378636 | W198: 0.7413511368 | X198: 0.2586488632
A199: 2015-06-01 | B199: 219 | C199: 39291666 | D199: 179414 | E199: 157900 | F199: 81 | J199: 69 | K199: 12379014 | L199: 179406 | M199: 164900 | N199: 56 | R199: 288 | T199: 179412.0834 | U199: 159577.0265 | V199: 75.01061976 | W199: 0.7604247902 | X199: 0.2395752098
A200: 2015-07-01 | B200: 181 | C200: 29895046 | D200: 165166 | E200: 144900 | F200: 61 | J200: 86 | K200: 15239716 | L200: 177206 | M200: 158900 | N200: 69 | R200: 267 | T200: 169231.2963 | U200: 149627.0887 | V200: 63.70119355 | W200: 0.6623508062 | X200: 0.3376491938
... 17 more rows

Sheet Work details
A1: Coldwell Banker - Multiple Listing Service Real Estate Data
A3: cvcerd folder, economic indicators folder, data, folder, sls_tx_oth_consump folder
A4: File name: ec_ch_home_sales_data.xls
A6: Contact: Mark Fouts, Managing Broker, Coldwell Banker | B6: 715-828-2127 mark@markfouts.com
A7: -Sent directly to me by fax each month about the 12th day
A9: ec_nrps – # of residential homes sold in Eau Claire County
A10: ec_vrps – $ value of residential homes sold in Eau Claire County
A11: ec_avg_rp – average price of residential homes sold in Eau Claire County
A12: ec_med_rp – median price of residential homes sold in Eau Claire County
A13: ec_avg_rdom – average days on market of residential homes sold in Eau Claire County
A14: ch_nrps – # of residential homes sold in Chippewa County
A15: ch_vrps – $ value of residential homes sold in Chippewa County
A16: ch_avg_p – average price of residential homes sold in Chippewa County
A17: ch_med_p – median price of residential homes sold in Chippewa County
A18: ch_avg_rdom – average days on market of residential homes sold in Chippewa County
A19: ecch_nrps – # of residential homes sold in Eau Claire and Chippewa County
A20: ecch_vrps – $ value of residential homes sold in Eau Claire and Chippewa County
A21: ecch_avg_p – average price of residential homes sold in Eau Claire and Chippewa County (wtd avg)
A22: ecch_med_p – median price of residential homes sold in Eau Claire and Chippewa County (wtd avg)
A23: ecch_avg_rdom – average days on market of residential homes sold in EC & Chip County (wtd avg)
A25: *Calculate real $ for value and prices
A27: *On month-to-month page we calculate the % of sales that occurred in each month and use that to create ytd median price as a weighted average.
A30: Report: Pages 13-15
A31: Web Data Folder, housing_market folder, cvcerd_home_sales_price_data_2010-2019.xls

Sheet Eau Claire data

Sheet Chippewa data

Sheet mnth-mnth
A1: ecch_nrps | B1: jan | C1: feb | D1: mar | E1: apr | F1: may | G1: jun | H1: jul | I1: aug | J1: sep | K1: oct | L1: nov | M1: dec | N1: ytd_total
A2: 2003 | B2: 81 | C2: 112 | D2: 141 | E2: 146 | F2: 174 | G2: 204 | H2: 201 | I2: 211 | J2: 179 | K2: 159 | L2: 90 | M2: 116 | N2: =SUM(B2:M2) -> 1814 | O2: =SUM(B2:M2) -> 1814
A3: 2004 | B3: 56 | C3: 107 | D3: 141 | E3: 191 | F3: 174 | G3: 222 | H3: 190 | I3: 181 | J3: 145 | K3: 145 | L3: 111 | M3: 112 | N3: 1775 | O3: 1775 | Q3: 2000 | R3: =SUM(data!R14:R25) -> 1405
A4: 2005 | B4: 62 | C4: 99 | D4: 144 | E4: 168 | F4: 179 | G4: 261 | H4: 210 | I4: 220 | J4: 185 | K4: 137 | L4: 123 | M4: 95 | N4: 1883 | O4: 1883 | Q4: 2001 | R4: =SUM(data!R26:R37) -> 1596
A5: 2006 | B5: 80 | C5: 101 | D5: 153 | E5: 163 | F5: 213 | G5: 221 | H5: 185 | I5: 193 | J5: 146 | K5: 125 | L5: 103 | M5: 114 | N5: 1797 | O5: 1797 | Q5: 2002 | R5: =SUM(data!R38:R49) -> 1740
A6: 2007 | B6: 90 | C6: 120 | D6: 147 | E6: 178 | F6: 195 | G6: 220 | H6: 193 | I6: 187 | J6: 113 | K6: 119 | L6: 102 | M6: 89 | N6: 1753 | O6: 1753
A7: 2008 | B7: 73 | C7: 81 | D7: 112 | E7: 142 | F7: 188 | G7: 173 | H7: 161 | I7: 153 | J7: 109 | K7: 139 | L7: 68 | M7: 67 | N7: 1466 | O7: 1466
A8: 2009 | B8: 42 | C8: 63 | D8: 99 | E8: 151 | F8: 176 | G8: 169 | H8: 175 | I8: 175 | J8: 142 | K8: 163 | L8: 136 | M8: 68 | N8: =SUM(B8:M8) -> 1559 | O8: =SUM(B8:M8) -> 1559
A9: 2010 | B9: 50 | C9: 74 | D9: 148 | E9: 189 | F9: 195 | G9: 184 | H9: 104 | I9: 115 | J9: 95 | K9: 91 | L9: 101 | M9: 100 | N9: 1446 | O9: 1446
A10: 2011 | B10: 59 | C10: 59 | D10: 85 | E10: 110 | F10: 145 | G10: 168 | H10: 171 | I10: 148 | J10: 121 | K10: 114 | L10: 97 | M10: 105 | N10: 1382 | O10: 1382
A11: 2012 | B11: 58 | C11: 79 | D11: 112 | E11: 136 | F11: 170 | G11: 219 | H11: 150 | I11: 177 | J11: 135 | K11: 140 | L11: 126 | M11: 106 | N11: 1608 | O11: 1608
A12: 2013 | B12: 78 | C12: 86 | D12: 113 | E12: 175 | F12: 197 | G12: 195 | H12: 191 | I12: 222 | J12: 178 | K12: 140 | L12: 115 | M12: 124 | N12: 1814 | O12: 1814
A13: 2014 | B13: 80 | C13: 83 | D13: 123 | E13: 123 | F13: 214 | G13: 252 | H13: 196 | I13: 191 | J13: 163 | K13: 183 | L13: 131 | M13: 109 | N13: 1848 | O13: 1848
A14: 2015 | N14: =SUM(B14:B14) -> 0 | O14: =SUM(B14:M14) -> 0
B15: jan-dec | C15: feb-jan | D15: mar-feb | E15: apr-mar | F15: may-apr | G15: jun-may | H15: jul-jun | I15: aug-jul | J15: sep-aug | K15: oct-sep | L15: nov-oct | M15: dec-nov
A16: change_04 | B16: =B3-M2 -> -60 | C16: =C3-B3 -> 51 | D16: 34 | E16: 50 | F16: -17 | G16: 48 | H16: -32 | I16: -9 | J16: -36 | K16: 0 | L16: -34 | M16: 1
A17: %change_04 | B17: =(B16/M2)*100 -> -51.72413793 | C17: =(C16/B3)*100 -> 91.07142857 | D17: 31.77570093 | E17: 35.46099291 | F17: -8.90052356 | G17: 27.5862069 | H17: -14.41441441 | I17: -4.736842105 | J17: -19.88950276 | K17: 0 | L17: -23.44827586 | M17: 0.9009009009
B18: jan | C18: feb | D18: mar | E18: apr | F18: may | G18: jun | H18: jul | I18: aug | J18: sep | K18: oct | L18: nov | M18: dec | N18: ytd_total
A19: chg_prv_04-03 | B19: =B3-B2 -> -25 | C19: -5 | D19: 0 | E19: 45 | F19: 0 | G19: 18 | H19: =H3-H2 -> -11 | I19: -30 | J19: -34 | K19: -14 | L19: 21 | M19: -4 | N19: =O3-O2 -> -39
A20: %chg_prv_04-03 | B20: =(B19/B2)*100 -> -30.86419753 | C20: -4.464285714 | D20: 0 | E20: 30.82191781 | F20: 0 | G20: 8.823529412 | H20: -5.472636816 | I20: -14.21800948 | J20: -18.99441341 | K20: -8.805031447 | L20: 23.33333333 | M20: -3.448275862 | N20: =(N19/O2)*100 -> -2.149944873
B22: jan-dec | C22: feb-jan | D22: mar-feb | E22: apr-mar | F22: may-apr | G22: jun-may | H22: jul-jun | I22: aug-jul | J22: sep-aug | K22: oct-sep | L22: nov-oct | M22: dec-nov
A23: change_05 | B23: =B4-M3 -> -50 | C23: =C4-B4 -> 37 | D23: 45 | E23: 24 | F23: 11 | G23: 82 | H23: -51 | I23: 10 | J23: -35 | K23: -48 | L23: -14 | M23: -28
A24: %change_05 | B24: =(B23/M3)*100 -> -44.64285714 | C24: =(C23/B4)*100 -> 59.67741935 | D24: 45.45454545 | E24: 16.66666667 | F24: 6.547619048 | G24: 45.81005587 | H24: -19.54022989 | I24: 4.761904762 | J24: -15.90909091 | K24: -25.94594595 | L24: -10.2189781 | M24: -22.76422764
B25: jan | C25: feb | D25: mar | E25: apr | F25: may | G25: jun | H25: jul | I25: aug | J25: sep | K25: oct | L25: nov | M25: dec | N25: ytd_total
A26: chg_prv_05-04 | B26: =B4-B3 -> 6 | C26: -8 | D26: 3 | E26: -23 | F26: 5 | G26: 39 | H26: =H4-H3 -> 20 | I26: 39 | J26: 40 | K26: -8 | L26: 12 | M26: -17 | N26: =O4-O3 -> 108
A27: %chg_prv_05-04 | B27: =(B26/B3)*100 -> 10.71428571 | C27: -7.476635514 | D27: 2.127659574 | E27: -12.04188482 | F27: 2.873563218 | G27: 17.56756757 | H27: 10.52631579 | I27: 21.54696133 | J27: 27.5862069 | K27: -5.517241379 | L27: 10.81081081 | M27: -15.17857143 | N27: =(N26/O3)*100 -> 6.084507042
B29: jan-dec | C29: feb-jan | D29: mar-feb | E29: apr-mar | F29: may-apr | G29: jun-may | H29: jul-jun | I29: aug-jul | J29: sep-aug | K29: oct-sep | L29: nov-oct | M29: dec-nov
A30: change_06 | B30: =B5-M4 -> -15 | C30: =C5-B5 -> 21 | D30: 52 | E30: 10 | F30: 50 | G30: 8 | H30: -36 | I30: 8 | J30: -47 | K30: -21 | L30: =L5-K5 -> -22 | M30: =M5-L5 -> 11
A31: %change_06 | B31: =(B30/M4)*100 -> -15.78947368 | C31: =(C30/B5)*100 -> 26.25 | D31: 51.48514851 | E31: 6.535947712 | F31: 30.67484663 | G31: 3.755868545 | H31: -16.28959276 | I31: 4.324324324 | J31: -24.35233161 | K31: -14.38356164 | L31: -17.6 | M31: 10.67961165
B32: jan | C32: feb | D32: mar | E32: apr | F32: may | G32: jun | H32: jul | I32: aug | J32: sep | K32: oct | L32: nov | M32: dec | N32: ytd_total
A33: chg_prv_06-05 | B33: =B5-B4 -> 18 | C33: 2 | D33: 9 | E33: -5 | F33: 34 | G33: -40 | H33: =H5-H4 -> -25 | I33: -27 | J33: -39 | K33: -12 | L33: -20 | M33: 19 | N33: =O5-O4 -> -86
A34: %chg_prv_06-05 | B34: =(B33/B4)*100 -> 29.03225806 | C34: 2.02020202 | D34: 6.25 | E34: -2.976190476 | F34: 18.99441341 | G34: -15.3256705 | H34: -11.9047619 | I34: -12.27272727 | J34: -21.08108108 | K34: -8.759124088 | L34: -16.2601626 | M34: 20 | N34: =(N33/O4)*100 -> -4.567180032
B36: jan-dec | C36: feb-jan | D36: mar-feb | E36: apr-mar | F36: may-apr | G36: jun-may | H36: jul-jun | I36: aug-jul | J36: sep-aug | K36: oct-sep | L36: nov-oct | M36: dec-nov
A37: change_07 | B37: =B6-M5 -> -24 | C37: =C6-B6 -> 30 | D37: 27 | E37: 31 | F37: 17 | G37: 25 | H37: -27 | I37: -6 | J37: -74 | K37: =K6-J6 -> 6 | L37: =L6-K6 -> -17 | M37: =M6-L6 -> -13
A38: %change_07 | B38: =(B37/M5)*100 -> -21.05263158 | C38: =(C37/B6)*100 -> 33.33333333 | D38: 22.5 | E38: 21.08843537 | F38: 9.550561798 | G38: 12.82051282 | H38: -12.27272727 | I38: -3.10880829 | J38: -39.57219251 | K38: 5.309734513 | L38: -14.28571429 | M38: -12.74509804
B39: jan | C39: feb | D39: mar | E39: apr | F39: may | G39: jun | H39: jul | I39: aug | J39: sep | K39: oct | L39: nov | M39: dec | N39: ytd_total
A40: chg_prv_07-06 | B40: =B6-B5 -> 10 | C40: 19 | D40: -6 | E40: 15 | F40: -18 | G40: -1 | H40: 8 | I40: -6 | J40: =J6-J5 -> -33 | K40: =K6-K5 -> -6 | L40: =L6-L5 -> -1 | M40: =M6-M5 -> -25 | N40: =O6-O5 -> -44
A41: %chg_prv_07-06 | B41: =(B40/B5)*100 -> 12.5 | C41: 18.81188119 | D41: -3.921568627 | E41: 9.202453988 | F41: -8.450704225 | G41: -0.4524886878 | H41: 4.324324324 | I41: -3.10880829 | J41: -22.60273973 | K41: -4.8 | L41: -0.9708737864 | M41: -21.92982456 | N41: =(N40/O5)*100 -> -2.44852532
B43: jan-dec | C43: feb-jan | D43: mar-feb | E43: apr-mar | F43: may-apr | G43: jun-may | H43: jul-jun | I43: aug-jul | J43: sep-aug | K43: oct-sep | L43: nov-oct | M43: dec-nov
A44: change_08 | B44: =B7-M6 -> -16 | C44: =C7-B7 -> 8 | D44: 31 | E44: 30 | F44: 46 | G44: -15 | H44: -12 | I44: =I7-H7 -> -8 | J44: =J7-I7 -> -44 | K44: =K7-J7 -> 30 | L44: =L7-K7 -> -71 | M44: =M7-L7 -> -1
A45: %change_08 | B45: =(B44/M6)*100 -> -17.97752809 | C45: =(C44/B7)*100 -> 10.95890411 | D45: 38.27160494 | E45: 26.78571429 | F45: 32.3943662 | G45: -7.978723404 | H45: -6.936416185 | I45: -4.968944099 | J45: -28.75816993 | K45: 27.52293578 | L45: -51.07913669 | M45: -1.470588235
B46: jan | C46: feb | D46: mar | E46: apr | F46: may | G46: jun | H46: jul | I46: aug | J46: sep | K46: oct | L46: nov | M46: dec | N46: ytd_total
A47: chg_prv_08-07 | B47: =B7-B6 -> -17 | C47: -39 | D47: -35 | E47: -36 | F47: -7 | G47: -47 | H47: =H7-H6 -> -32 | I47: -34 | J47: -4 | K47: 20 | L47: -34 | M47: -22 | N47: =O7-O6 -> -287
A48: %chg_prv_08-07 | B48: =(B47/B6)*100 -> -18.88888889 | C48: -32.5 | D48: -23.80952381 | E48: -20.2247191 | F48: -3.58974359 | G48: -21.36363636 | H48: -16.58031088 | I48: -18.18181818 | J48: -3.539823009 | K48: 16.80672269 | L48: -33.33333333 | M48: -24.71910112 | N48: =(N47/O6)*100 -> -16.37193383
B50: jan-dec | C50: feb-jan | D50: mar-feb | E50: apr-mar | F50: may-apr | G50: jun-may | H50: jul-jun | I50: aug-jul | J50: sep-aug | K50: oct-sep | L50: nov-oct | M50: dec-nov
A51: change_09 | B51: =B8-M7 -> -25 | C51: =C8-B8 -> 21 | D51: 36 | E51: 52 | F51: 25 | G51: -7 | H51: 6 | I51: 0 | J51: -33 | K51: 21 | L51: -27 | M51: -68
A52: %change_09 | B52: =(B51/M7)*100 -> -37.31343284 | C52: =(C51/B8)*100 -> 50 | D52: 57.14285714 | E52: 52.52525253 | F52: 16.55629139 | G52: -3.977272727 | H52: 3.550295858 | I52: 0 | J52: -18.85714286 | K52: 14.78873239 | L52: -16.56441718 | M52: -50
B53: jan | C53: feb | D53: mar | E53: apr | F53: may | G53: jun | H53: jul | I53: aug | J53: sep | K53: oct | L53: nov | M53: dec | N53: ytd_total
A54: chg_prv_09-08 | B54: =B8-B7 -> -31 | C54: -18 | D54: -13 | E54: 9 | F54: -12 | G54: -4 | H54: 14 | I54: 22 | J54: 33 | K54: 24 | L54: 68 | M54: 1 | N54: =O8-O7 -> 93
A55: %chg_prv_09-08 | B55: =(B54/B7)*100 -> -42.46575342 | C55: -22.22222222 | D55: -11.60714286 | E55: 6.338028169 | F55: -6.382978723 | G55: -2.312138728 | H55: 8.695652174 | I55: 14.37908497 | J55: 30.27522936 | K55: 17.26618705 | L55: 100 | M55: 1.492537313 | N55: =(N54/O7)*100 -> 6.343792633
B57: jan-dec | C57: feb-jan | D57: mar-feb | E57: apr-mar | F57: may-apr | G57: jun-may | H57: jul-jun | I57: aug-jul | J57: sep-aug | K57: oct-sep | L57: nov-oct | M57: dec-nov
A58: change_10 | B58: =B9-M8 -> -18 | C58: =C9-B9 -> 24 | D58: 74 | E58: 41 | F58: 6 | G58: -11 | H58: -80 | I58: 11 | J58: -20 | K58: -4 | L58: 10 | M58: -1
A59: %change_10 | B59: =(B58/M8)*100 -> -26.47058824 | C59: =(C58/B9)*100 -> 48 | D59: 100 | E59: 27.7027027 | F59: 3.174603175 | G59: -5.641025641 | H59: -43.47826087 | I59: 10.57692308 | J59: -17.39130435 | K59: -4.210526316 | L59: 10.98901099 | M59: -0.9900990099
B60: jan | C60: feb | D60: mar | E60: apr | F60: may | G60: jun | H60: jul | I60: aug | J60: sep | K60: oct | L60: nov | M60: dec | N60: ytd_total
A61: chg_prv_10-09 | B61: =B9-B8 -> 8 | C61: 11 | D61: 49 | E61: 38 | F61: 19 | G61: 15 | H61: =H9-H8 -> -71 | I61: -60 | J61: -47 | K61: -72 | L61: -35 | M61: 32 | N61: =O9-O8 -> -113
A62: %chg_prv_10-09 | B62: =(B61/B8)*100 -> 19.04761905 | C62: 17.46031746 | D62: 49.49494949 | E62: 25.16556291 | F62: 10.79545455 | G62: 8.875739645 | H62: -40.57142857 | I62: =(I61/I8)*100 -> -34.28571429 | J62: =(J61/J8)*100 -> -33.09859155 | K62: =(K61/K8)*100 -> -44.17177914 | L62: =(L61/L8)*100 -> -25.73529412 | M62: =(M61/M8)*100 -> 47.05882353 | N62: =(N61/O8)*100 -> -7.248236049
B64: jan-dec | C64: feb-jan | D64: mar-feb | E64: apr-mar | F64: may-apr | G64: jun-may | H64: jul-jun | I64: aug-jul | J64: sep-aug | K64: oct-sep | L64: nov-oct | M64: dec-nov
A65: change_11 | B65: =(B10-M9) -> -41 | C65: =C10-B10 -> 0 | D65: 26 | E65: 25 | F65: 35 | G65: 23 | H65: 3 | I65: -23 | J65: -27 | K65: -7 | L65: -17 | M65: 8
A66: %change_11 | B66: =(B65/M9)*100 -> -41 | C66: =(C65/B10)*100 -> 0 | D66: 44.06779661 | E66: 29.41176471 | F66: 31.81818182 | G66: 15.86206897 | H66: 1.785714286 | I66: -13.4502924 | J66: -18.24324324 | K66: -5.785123967 | L66: -14.9122807 | M66: 8.24742268
B67: jan | C67: feb | D67: mar | E67: apr | F67: may | G67: jun | H67: jul | I67: aug | J67: sep | K67: oct | L67: nov | M67: dec | N67: ytd_total
A68: chg_prv_11-10 | B68: =(B10-B9) -> 9 | C68: -15 | D68: -63 | E68: -79 | F68: -50 | G68: -16 | H68: =(H10-H9) -> 67 | I68: 33 | J68: 26 | K68: 23 | L68: -4 | M68: 5 | N68: =O10-O9 -> -64
A69: %chg_prv_11-10 | B69: =(B68/B9)*100 -> 18 | C69: -20.27027027 | D69: -42.56756757 | E69: -41.7989418 | F69: -25.64102564 | G69: -8.695652174 | H69: =(H68/H9)*100 -> 64.42307692 | I69: 28.69565217 | J69: 27.36842105 | K69: 25.27472527 | L69: -3.96039604 | M69: 5 | N69: =(N68/O9)*100 -> -4.426002766
B71: jan-dec | C71: feb-jan | D71: mar-feb | E71: apr-mar | F71: may-apr | G71: jun-may | H71: jul-jun | I71: aug-jul | J71: sep-aug | K71: oct-sep | L71: nov-oct | M71: dec-nov
A72: change_12 | B72: =B11-M10 -> -47 | C72: =C11-B11 -> 21 | D72: 33 | E72: 24 | F72: 34 | G72: 49 | H72: -69 | I72: =I11-H11 -> 27 | J72: -42 | K72: 5 | L72: -14 | M72: -20
A73: %change_12 | B73: =(B72/M10)*100 -> -44.76190476 | C73: =(C72/B11)*100 -> 36.20689655 | D73: 41.7721519 | E73: 21.42857143 | F73: 25 | G73: 28.82352941 | H73: -31.50684932 | I73: 18 | J73: -23.72881356 | K73: 3.703703704 | L73: -10 | M73: -15.87301587
B74: jan | C74: feb | D74: mar | E74: apr | F74: may | G74: jun | H74: jul | I74: aug | J74: sep | K74: oct | L74: nov | M74: dec | N74: ytd_total
A75: chg_prv_12-11 | B75: =B11-B10 -> -1 | C75: 20 | D75: 27 | E75: 26 | F75: 25 | G75: 51 | H75: =H11-H10 -> -21 | I75: 29 | J75: =J11-J10 -> 14 | K75: 26 | L75: =L11-L10 -> 29 | M75: 1 | N75: =O11-O10 -> 226
A76: %chg_prv_12-11 | B76: =(B75/B10)*100 -> -1.694915254 | C76: 33.89830508 | D76: 31.76470588 | E76: 23.63636364 | F76: 17.24137931 | G76: 30.35714286 | H76: -12.28070175 | I76: =(I75/I10)*100 -> 19.59459459 | J76: 11.57024793 | K76: =(K75/K10)*100 -> 22.80701754 | L76: 29.89690722 | M76: =(M75/M10)*100 -> 0.9523809524 | N76: =(N75/O10)*100 -> 16.35311143
B78: jan-dec | C78: feb-jan | D78: mar-feb | E78: apr-mar | F78: may-apr | G78: jun-may | H78: jul-jun | I78: aug-jul | J78: sep-aug | K78: oct-sep | L78: nov-oct | M78: dec-nov
A79: change_13 | B79: =B12-M11 -> -28 | C79: =C12-B12 -> 8 | D79: 27 | E79: 62 | F79: 22 | G79: -2 | H79: -4 | I79: 31 | J79: -44 | K79: -38 | L79: -25 | M79: 9
A80: %change_13 | B80: =(B79/M11)*100 -> -26.41509434 | C80: =(C79/B12)*100 -> 10.25641026 | D80: 31.39534884 | E80: 54.86725664 | F80: 12.57142857 | G80: -1.015228426 | H80: -2.051282051 | I80: 16.23036649 | J80: -19.81981982 | K80: -21.34831461 | L80: -17.85714286 | M80: 7.826086957
B81: jan | C81: feb | D81: mar | E81: apr | F81: may | G81: jun | H81: jul | I81: aug | J81: sep | K81: oct | L81: nov | M81: dec | N81: ytd_total
A82: chg_prv_13-12 | B82: =B12-B11 -> 20 | C82: 7 | D82: 1 | E82: 39 | F82: 27 | G82: -24 | H82: 41 | I82: 45 | J82: 43 | K82: 0 | L82: -11 | M82: 18 | N82: =O12-O11 -> 206
A83: %chg_prv_13-12 | B83: =(B82/B11)*100 -> 34.48275862 | C83: 8.860759494 | D83: 0.8928571429 | E83: 28.67647059 | F83: 15.88235294 | G83: -10.95890411 | H83: 27.33333333 | I83: 25.42372881 | J83: 31.85185185 | K83: 0 | L83: -8.73015873 | M83: 16.98113208 | N83: =(N82/O11)*100 -> 12.81094527
B85: jan-dec | C85: feb-jan | D85: mar-feb | E85: apr-mar | F85: may-apr | G85: jun-may | H85: jul-jun | I85: aug-jul | J85: sep-aug | K85: oct-sep | L85: nov-oct | M85: dec-nov
A86: change_14 | B86: =B13-M12 -> -44 | C86: =C13-B13 -> 3 | D86: 40 | E86: 0 | F86: 91 | G86: 38 | H86: -56 | I86: -5 | J86: -28 | K86: 20 | L86: -52 | M86: -22
A87: %change_14 | B87: =(B86/M12)*100 -> -35.48387097 | C87: =(C86/B13)*100 -> 3.75 | D87: 48.19277108 | E87: 0 | F87: 73.98373984 | G87: 17.75700935 | H87: -22.22222222 | I87: -2.551020408 | J87: -14.65968586 | K87: 12.26993865 | L87: -28.41530055 | M87: -16.79389313
B88: jan | C88: feb | D88: mar | E88: apr | F88: may | G88: jun | H88: jul | I88: aug | J88: sep | K88: oct | L88: nov | M88: dec | N88: ytd_total
A89: chg_prv_14-13 | B89: =B13-B12 -> 2 | C89: -3 | D89: 10 | E89: -52 | F89: 17 | G89: 57 | H89: =H13-H12 -> 5 | I89: -31 | J89: =J13-J12 -> -15 | K89: =K13-K12 -> 43 | L89: 16 | M89: =M13-M12 -> -15 | N89: =O13-O12 -> 34
A90: %chg_prv_14-13 | B90: =(B89/B12)*100 -> 2.564102564 | C90: -3.488372093 | D90: 8.849557522 | E90: -29.71428571 | F90: 8.629441624 | G90: 29.23076923 | H90: 2.617801047 | I90: =(I89/I12)*100 -> -13.96396396 | J90: -8.426966292 | K90: =(K89/K12)*100 -> 30.71428571 | L90: 13.91304348 | M90: =(M89/M12)*100 -> -12.09677419 | N90: =(N89/O12)*100 -> 1.874310915
B92: jan-dec | C92: feb-jan | D92: mar-feb | E92: apr-mar | F92: may-apr | G92: jun-may | H92: jul-jun | I92: aug-jul | J92: sep-aug | K92: oct-sep | L92: nov-oct | M92: dec-nov
A93: change_15
A94: %change_15
B95: jan | C95: feb | D95: mar | E95: apr | F95: may | G95: jun | H95: jul | I95: aug | J95: sep | K95: oct | L95: nov | M95: dec | N95: ytd_total
A96: chg_prv_15-14 | N96: =N14-N13 -> -1848
A97: %chg_prv_15-14 | N97: =(N96/N13)*100 -> -100
A99: ecch_vrps_r96 | B99: jan | C99: feb | D99: mar | E99: apr | F99: may | G99: jun | H99: jul | I99: aug | J99: sep | K99: oct | L99: nov | M99: dec | N99: ytd_total
A100: 2003 | B100: 8556857.78 | C100: 12302721.62 | D100: 14701245.94 | E100: 15195461.03 | F100: 19516058.67 | G100: 23210926.61 | H100: 23497690.28 | I100: 26170545.72 | J100: 19708152.11 | K100: 16832859.01 | L100: 9716977.94 | M100: 13547275.73 | N100: =SUM(B100:M100) -> 202956772.4 | O100: =SUM(B100:M100) -> 202956772.4
A101: 2004 | B101: 6192747.903 | C101: 12550495.63 | D101: 15331324.5 | E101: 20333434.59 | F101: 19824824.12 | G101: 26151529.13 | H101: 22219083.3 | I101: 22521223.01 | J101: 15948993.77 | K101: 16618950.73 | L101: 12807190.71 | M101: 12992816.46 | N101: 203492613.9 | O101: 203492613.9 | Q101: 2000 | R101: =SUM(data!S14:S25) -> 160574766
A102: 2005 | B102: 6997520.551 | C102: 11255527.53 | D102: 14984049 | E102: 19889977.91 | F102: 20078076.9 | G102: 30683346.35 | H102: 23905187.47 | I102: 26179405.75 | J102: 21647140.61 | K102: 16474061.43 | L102: 14941912.23 | M102: 11578227.07 | N102: 218614432.8 | O102: 218614432.8 | Q102: 2001 | R102: =SUM(data!S26:S37) -> 191743849
A103: 2006 | B103: 9365367 | C103: 11498295 | D103: 19017731 | E103: 18730613 | F103: 24878080 | G103: 26484446 | H103: 23324583 | I103: 22972205 | J103: 19587435 | K103: 14787387 | L103: 12250350 | M103: 13413592 | N103: =SUM(B103:M103) -> 216310084 | O103: =SUM(B103:M103) -> 216310084 | Q103: 2002 | R103: =SUM(data!S38:S49) -> 220507887
A104: 2007 | B104: 10797846 | C104: 14189827 | D104: 18202655 | E104: 21448988 | F104: 23175665 | G104: 28118886 | H104: 22329248 | I104: 22315889 | J104: 13112078 | K104: 13657288 | L104: 11407550 | M104: 10358649 | N104: 209114569 | O104: 209114569
A105: 2008 | B105: 8204379 | C105: 8318137 | D105: 12586216 | E105: 14532377 | F105: 20944668 | G105: 19624337 | H105: 18303306 | I105: 17196965 | J105: 11913433 | K105: 14880815 | L105: 7001748 | M105: 6755441 | N105: 160261822 | O105: 160261822
A106: 2009 | B106: 3967824 | C106: 6157361 | D106: 11101060 | E106: 15629238.44 | F106: 19381238 | G106: 19149744 | H106: 20131674 | I106: 18903321 | J106: 14529526 | K106: 17232424 | L106: 13084198 | M106: 8252040 | N106: 167519648.4 | O106: 167519648.4
A107: 2010 | B107: 5006754 | C107: 7279672 | D107: 14157394 | E107: 19437468 | F107: 20380002 | G107: 21067755 | H107: 11940127 | I107: 12632961 | J107: 10042628 | K107: 10508105 | L107: 11526502 | M107: 10560825 | N107: 154540193 | O107: 154540193
A108: 2011 | B108: 5242974 | C108: 4900026 | D108: 5476801 | E108: 6442472 | F108: 9949998 | G108: 11566484 | H108: 15874636 | I108: 14791884 | J108: 12721451 | K108: 10078916 | L108: 9829675 | M108: 10132840 | N108: 117008157 | O108: 117008157
A109: 2012 | B109: 5569840 | C109: 6951802 | D109: 10456782 | E109: 12485024 | F109: 16603632 | G109: 24314101 | H109: 16511818 | I109: 18597015 | J109: 13135195 | K109: 14152341 | L109: 13083821 | M109: 10535861 | N109: =SUM(B109:M109) -> 162397232 | O109: 162397232
A110: 2013 | B110: 8215524 | C110: 7814527 | D110: 9849392 | E110: 19472829 | F110: 21778421 | G110: 22438629 | H110: 21434248 | I110: 25914848 | J110: 19207499 | K110: 15745456 | L110: 12406891 | M110: 12002404 | N110: =SUM(B110:M110) -> 196280668 | O110: =SUM(B110:M110) -> 196280668
A111: 2014 | B111: 8468295.998 | C111: 8046254 | D111: 12870787 | E111: 11914311 | F111: 24899185 | G111: 27806117 | H111: 19936467 | I111: 20271477 | J111: 17933576.63 | K111: 19074032 | L111: 13583321 | M111: 10404932 | N111: =SUM(B111:M111) -> 195208755.6 | O111: 195208755.6
A112: 2015
A113: 2003 (thousands) | B113: =(B100/1000) -> 8556.85778 | C113: 12302.72162 | D113: 14701.24594 | E113: 15195.46103 | F113: =(F100/1000) -> 19516.05867 | G113: 23210.92661 | H113: 23497.69028 | I113: 26170.54572 | J113: 19708.15211 | K113: 16832.85901 | L113: 9716.97794 | M113: 13547.27573 | N113: 202956.7724 | O113: 202956.7724
A114: 2004 (thousands) | B114: 6192.747903 | C114: 12550.49563 | D114: 15331.3245 | E114: 20333.43459 | F114: =F101/1000 -> 19824.82412 | G114: 26151.52913 | H114: 22219.0833 | I114: 22521.22301 | J114: 15948.99377 | K114: 16618.95073 | L114: 12807.19071 | M114: 12992.81646 | N114: 203492.6139 | O114: 203492.6139
A115: 2005 (thousands) | B115: 6997.520551 | C115: 11255.52753 | D115: 14984.049 | E115: 19889.97791 | F115: =(F102/1000) -> 20078.0769 | G115: 30683.34635 | H115: 23905.18747 | I115: 26179.40575 | J115: 21647.14061 | K115: 16474.06143 | L115: 14941.91223 | M115: 11578.22707 | N115: 218614.4328 | O115: 218614.4328
A116: 2006 (thousands) | B116: =(B103/1000) -> 9365.367 | C116: 11498.295 | D116: 19017.731 | E116: 18730.613 | F116: 24878.08 | G116: 26484.446 | H116: 23324.583 | I116: 22972.205 | J116: 19587.435 | K116: 14787.387 | L116: 12250.35 | M116: 13413.592 | N116: =SUM(B116:M116) -> 216310.084 | O116: =SUM(B116:M116) -> 216310.084
A117: 2007 (thousands) | B117: =(B104/1000) -> 10797.846 | C117: 14189.827 | D117: 18202.655 | E117: 21448.988 | F117: 23175.665 | G117: 28118.886 | H117: 22329.248 | I117: 22315.889 | J117: 13112.078 | K117: 13657.288 | L117: 11407.55 | M117: 10358.649 | N117: 209114.569 | O117: 209114.569
A118: 2008 (thousands) | B118: =B105/1000 -> 8204.379 | C118: 8318.137 | D118: 12586.216 | E118: 14532.377 | F118: 20944.668 | G118: 19624.337 | H118: 18303.306 | I118: 17196.965 | J118: 11913.433 | K118: 14880.815 | L118: 7001.748 | M118: 6755.441 | N118: 160261.822 | O118: 160261.822
A119: 2009 (thousands) | B119: =B106/1000 -> 3967.824 | C119: 6157.361 | D119: 11101.06 | E119: 15629.23844 | F119: 19381.238 | G119: 19149.744 | H119: 20131.674 | I119: 18903.321 | J119: 14529.526 | K119: 17232.424 | L119: 13084.198 | M119: 8252.04 | N119: 167519.6484 | O119: 167519.6484
A120: 2010 (thousands) | B120: =B107/1000 -> 5006.754 | C120: 7279.672 | D120: 14157.394 | E120: 19437.468 | F120: 20380.002 | G120: 21067.755 | H120: 11940.127 | I120: 12632.961 | J120: 10042.628 | K120: 10508.105 | L120: 11526.502 | M120: 10560.825 | N120: 154540.193 | O120: 154540.193
A121: 2011 (thousands) | B121: =B108/1000 -> 5242.974 | C121: 4900.026 | D121: 5476.801 | E121: 6442.472 | F121: 9949.998 | G121: 11566.484 | H121: 15874.636 | I121: 14791.884 | J121: 12721.451 | K121: 10078.916 | L121: 9829.675 | M121: 10132.84 | N121: 117008.157 | O121: 117008.157
A122: 2012 (thousands) | B122: =B109/1000 -> 5569.84 | C122: 6951.802 | D122: 10456.782 | E122: 12485.024 | F122: 16603.632 | G122: 24314.101 | H122: 16511.818 | I122: 18597.015 | J122: 13135.195 | K122: 14152.341 | L122: 13083.821 | M122: 10535.861 | N122: =SUM(B122:M122) -> 162397.232 | O122: 162397.232
A123: 2013 (thousands) | B123: =B110/1000 -> 8215.524 | C123: 7814.527 | D123: 9849.392 | E123: 19472.829 | F123: 21778.421 | G123: 22438.629 | H123: 21434.248 | I123: 25914.848 | J123: 19207.499 | K123: 15745.456 | L123: 12406.891 | M123: 12002.404 | N123: =SUM(B123:M123) -> 196280.668 | O123: =SUM(B123:M123) -> 196280.668
A124: 2014 (thousands) | B124: =B111/1000 -> 8468.295998 | C124: 8046.254 | D124: 12870.787 | E124: 11914.311 | F124: 24899.185 | G124: 27806.117 | H124: 19936.467 | I124: 20271.477 | J124: 17933.57663 | K124: 19074.032 | L124: 13583.321 | M124: 10404.932 | N124: =SUM(B124:M124) -> 195208.7556 | O124: 195208.7556
A125: 2015 (thousands)
B126: jan-dec | C126: feb-jan | D126: mar-feb | E126: apr-mar | F126: may-apr | G126: jun-may | H126: jul-jun | I126: aug-jul | J126: sep-aug | K126: oct-sep | L126: nov-oct | M126: dec-nov
A127: change_04 | B127: =B101-M100 -> -7354527.825 | C127: =C101-B101 -> 6357747.726 | D127: 2780828.871 | E127: 5002110.086 | F127: -508610.4702 | G127: 6326705.015 | H127: -3932445.828 | I127: 302139.7055 | J127: -6572229.238 | K127: 669956.9592 | L127: -3811760.016 | M127: 185625.745
A128: %change_04 | B128: =(B127/M100)*100 -> -54.28787287 | C128: =(C127/B101)*100 -> 102.664404 | D128: 22.15712393 | E128: 32.62673154 | F128: -2.501350512 | G128: 31.91304487 | H128: -15.03715446 | I128: 1.359820751 | J128: -29.18238159 | K128: 4.200622113 | L128: -22.9362255 | M128: 1.449386904
B129: jan | C129: feb | D129: mar | E129: apr | F129: may | G129: jun | H129: jul | I129: aug | J129: sep | K129: oct | L129: nov | M129: dec | N129: ytd_total
A130: chg_prv_04-03 | B130: =B101-B100 -> -2364109.876 | C130: 247774.0113 | D130: 630078.5636 | E130: 5137973.553 | F130: 308765.4464 | G130: 2940602.526 | H130: =H101-H100 -> -1278606.982 | I130: -3649322.711 | J130: -3759158.341 | K130: -213908.2768 | L130: 3090212.774 | M130: -554459.2694 | N130: =O101-O100 -> 535841.4196
A131: %chg_prv_04-03 | B131: =(B130/B100)*100 -> -27.62824786 | C131: 2.013977224 | D131: 4.285885471 | E131: 33.81255457 | F131: 1.582109644 | G131: 12.66904409 | H131: -5.441415587 | I131: -13.94438905 | J131: -19.07412892 | K131: -1.270778046 | L131: 31.80220016 | M131: -4.092773193 | N131: =(N130/O100)*100 -> 0.2640175113
B133: jan-dec | C133: feb-jan | D133: mar-feb | E133: apr-mar | F133: may-apr | G133: jun-may | H133: jul-jun | I133: aug-jul | J133: sep-aug | K133: oct-sep | L133: nov-oct | M133: dec-nov
A134: change_05 | B134: =B102-M101 -> -5995295.908 | C134: =C102-B102 -> 4258006.974 | D134: 3728521.475 | E134: 4905928.909 | F134: 188098.9934 | G134: 10605269.45 | H134: -6778158.881 | I134: 2274218.274 | J134: -4532265.135 | K134: -5173079.18 | L134: -1532149.2 | M134: -3363685.166
A135: %change_05 | B135: =(B134/M101)*100 -> -46.14315862 | C135: =(C134/B102)*100 -> 60.85022464 | D135: 33.12613706 | E135: 32.74100952 | F135: 0.945697347 | G135: 52.82014559 | H135: -22.09067682 | I135: 9.513492735 | J135: -17.31233008 | K135: -23.89728636 | L135: -9.300373234 | M135: -22.51174491
B136: jan | C136: feb | D136: mar | E136: apr | F136: may | G136: jun | H136: jul | I136: aug | J136: sep | K136: oct | L136: nov | M136: dec | N136: ytd_total
A137: chg_prv_05-04 | B137: =B102-B101 -> 804772.6475 | C137: -1294968.105 | D137: -347275.5007 | E137: -443456.6776 | F137: 253252.786 | G137: 4531817.223 | H137: =H102-H101 -> 1686104.17 | I137: 3658182.738 | J137: 5698146.841 | K137: -144889.2982 | L137: 2134721.518 | M137: -1414589.393 | N137: =O102-O101 -> 15121818.95
A138: %chg_prv_05-04 | B138: =(B137/B101)*100 -> 12.99540463 | C138: -10.31806347 | D138: -2.26513698 | E138: -2.18092362 | F138: 1.277452877 | G138: 17.32907166 | H138: 7.588540658 | I138: 16.24326857 | J138: 35.72731247 | K138: -0.8718318052 | L138: 16.66814812 | M138: -10.88747307 | N138: =(N137/O101)*100 -> 7.43113898
B140: jan-dec | C140: feb-jan | D140: mar-feb | E140: apr-mar | F140: may-apr | G140: jun-may | H140: jul-jun | I140: aug-jul | J140: sep-aug | K140: oct-sep | L140: nov-oct | M140: dec-nov
A141: change_06 | B141: =B103-M102 -> -2212860.066 | C141: =C103-B103 -> 2132928 | D141: 7519436 | E141: -287118 | F141: 6147467 | G141: 1606366 | H141: -3159863 | I141: -352378 | J141: -3384770 | K141: -4800048 | L141: =L103-K103 -> -2537037 | M141: =M103-L103 -> 1163242
A142: %change_06 | B142: =(B141/M102)*100 -> -19.11225314 | C142: =(C141/B103)*100 -> 22.77463339 | D142: 65.39609568 | E142: -1.509738465 | F142: 32.82042611 | G142: 6.45695327 | H142: -11.93101415 | I142: -1.510757984 | J142: -14.73419726 | K142: -24.50575075 | L142: -17.1567634 | M142: 9.495581759
B143: jan | C143: feb | D143: mar | E143: apr | F143: may | G143: jun | H143: jul | I143: aug | J143: sep | K143: oct | L143: nov | M143: dec | N143: ytd_total
A144: chg_prv_06-05 | B144: =B103-B102 -> 2367846.449 | C144: 242767.4748 | D144: 4033682 | E144: -1159364.909 | F144: 4800003.098 | G144: -4198900.354 | H144: =H103-H102 -> -580604.4737 | I144: -3207200.747 | J144: -2059705.612 | K144: -1686674.432 | L144: -2691562.232 | M144: 1835364.934 | N144: =O103-O102 -> -2304348.805
A145: %chg_prv_06-05 | B145: =(B144/B102)*100 -> 33.83836363 | C145: 2.156873361 | D145: 26.91983989 | E145: -5.828889877 | F145: 23.90668748 | G145: -13.68462327 | H145: -2.428780257 | I145: -12.25085389 | J145: -9.514908453 | K145: -10.23836435 | L145: -18.01350584 | M145: 15.85186509 | N145: =(N144/O102)*100 -> -1.054069841
B147: jan-dec | C147: feb-jan | D147: mar-feb | E147: apr-mar | F147: may-apr | G147: jun-may | H147: jul-jun | I147: aug-jul | J147: sep-aug | K147: oct-sep | L147: nov-oct | M147: dec-nov
A148: change_07 | B148: =B104-M103 -> -2615746 | C148: =C104-B104 -> 3391981 | D148: 4012828 | E148: 3246333 | F148: 1726677 | G148: 4943221 | H148: -5789638 | I148: -13359 | J148: -9203811 | K148: =K104-J104 -> 545210 | L148: =L104-K104 -> -2249738 | M148: =M104-L104 -> -1048901
A149: %change_07 | B149: =(B148/M103)*100 -> -19.50071241 | C149: =(C148/B104)*100 -> 31.41349673 | D149: 28.27961187 | E149: 17.83439284 | F149: 8.050156026 | G149: 21.32935991 | H149: -20.58985552 | I149: -0.05982736185 | J149: -41.24330875 | K149: =(K148/J104)*100 -> 4.158074716 | L149: =(L148/K104)*100 -> -16.47280192 | M149: =(M148/L104)*100 -> -9.194796429
B150: jan | C150: feb | D150: mar | E150: apr | F150: may | G150: jun | H150: jul | I150: aug | J150: sep | K150: oct | L150: nov | M150: dec | N150: ytd_total
A151: chg_prv_07-06 | B151: =B104-B103 -> 1432479 | C151: 2691532 | D151: -815076 | E151: 2718375 | F151: -1702415 | G151: 1634440 | H151: -995335 | I151: -656316 | J151: -6475357 | K151: -1130099 | L151: -842800 | M151: -3054943 | N151: =O104-O103 -> -7195515
A152: %chg_prv_07-06 | B152: =(B151/B103)*100 -> 15.29549242 | C152: 23.40809659 | D152: -4.285874061 | E152: 14.51300606 | F152: -6.843032099 | G152: 6.171320329 | H152: -4.267321735 | I152: -2.857000449 | J152: -33.05872872 | K152: -7.642317064 | L152: -6.879803434 | M152: -22.77498078 | N152: =(N151/O103)*100 -> -3.326481534
B154: jan-dec | C154: feb-jan | D154: mar-feb | E154: apr-mar | F154: may-apr | G154: jun-may | H154: jul-jun | I154: aug-jul | J154: sep-aug | K154: oct-sep | L154: nov-oct | M154: dec-nov
A155: change_08 | B155: =B105-M104 -> -2154270 | C155: =C105-B105 -> 113758 | D155: 4268079 | E155: 1946161 | F155: 6412291 | G155: -1320331 | H155: -1321031 | I155: -1106341 | J155: -5283532 | K155: 2967382 | L155: -7879067 | M155: -246307
A156: %change_08 | B156: =(B155/M104)*100 -> -20.79682399 | C156: =(C155/B105)*100 -> 1.38655223 | D156: 51.3105158 | E156: 15.46263786 | F156: 44.12417184 | G156: -6.303900353 | H156: -6.731595569 | I156: -6.044487264 | J156: -30.72363059 | K156: 24.90786661 | L156: -52.94781905 | M156: -3.517792985
B157: jan | C157: feb | D157: mar | E157: apr | F157: may | G157: jun | H157: jul | I157: aug | J157: sep | K157: oct | L157: nov | M157: dec | N157: ytd_total
A158: chg_prv_08-07 | B158: =B105-B104 -> -2593467 | C158: -5871690 | D158: -5616439 | E158: -6916611 | F158: -2230997 | G158: -8494549 | H158: -4025942 | I158: -5118924 | J158: -1198645 | K158: 1223527 | L158: -4405802 | M158: -3603208 | N158: =O105-O104 -> -48852747
A159: %chg_prv_08-07 | B159: =(B158/B104)*100 -> -24.01837366 | C159: -41.37957425 | D159: -30.85505384 | E159: -32.24679411 | F159: -9.626463793 | G159: -30.20940801 | H159: -18.0299041 | I159: -22.93847222 | J159: -9.141533478 | K159: 8.958784497 | L159: -38.62180749 | M159: -34.78453609 | N159: =(N158/O104)*100 -> -23.36171374
B161: jan-dec | C161: feb-jan | D161: mar-feb | E161: apr-mar | F161: may-apr | G161: jun-may | H161: jul-jun | I161: aug-jul | J161: sep-aug | K161: oct-sep | L161: nov-oct | M161: dec-nov
A162: change_09 | B162: =B106-M105 -> -2787617 | C162: =C106-B106 -> 2189537 | D162: =D106-C106 -> 4943699 | E162: 4528178.436 | F162: 3751999.564 | G162: -231494 | H162: 981930 | I162: -1228353 | J162: -4373795 | K162: 2702898 | L162: -4148226 | M162: -4832158
A163: %change_09 | B163: =(B162/M105)*100 -> -41.26476717 | C163: =(C162/B106)*100 -> 55.18231151 | D163: =(D162/C106)*100 -> 80.28925054 | E163: 40.79050501 | F163: 24.00628527 | G163: -1.194423184 | H163: 5.127640349 | I163: -6.101593936 | J163: -23.13770686 | K163: 18.60279544 | L163: -24.0722141 | M163: -36.93125096
B164: jan | C164: feb | D164: mar | E164: apr | F164: may | G164: jun | H164: jul | I164: aug | J164: sep | K164: oct | L164: nov | M164: dec | N164: ytd_total
A165: chg_prv_09-08 | B165: =B106-B105 -> -4236555 | C165: =C106-C105 -> -2160776 | D165: -1485156 | E165: 1096861.436 | F165: -1563430 | G165: -474593 | H165: 1828368 | I165: 1706356 | J165: 2616093 | K165: 2351609 | L165: 6082450 | M165: 1496599 | N165: =O106-O105 -> 7257826.436
A166: %chg_prv_09-08 | B166: =(B165/B105)*100 -> -51.63772907 | C166: =(C165/C105)*100 -> -25.97668204 | D166: -11.79986105 | E166: 7.547708374 | F166: -7.464572845 | G166: -2.418389982 | H166: 9.989277347 | I166: 9.922425265 | J166: 21.95918674 | K166: 15.80295837 | L166: 86.87045006 | M166: 22.15397929 | N166: =(N165/O105)*100 -> 4.528730764
B168: jan-dec | C168: feb-jan | D168: mar-feb | E168: apr-mar | F168: may-apr | G168: jun-may | H168: jul-jun | I168: aug-jul | J168: sep-aug | K168: oct-sep | L168: nov-oct | M168: dec-nov
A169: change_10 | B169: =B107-M106 -> -3245286 | C169: =C107-B107 -> 2272918 | D169: 6877722 | E169: 5280074 | F169: 942534 | G169: 687753 | H169: -9127628 | I169: 692834 | J169: =J107-I107 -> -2590333 | K169: =K107-J107 -> 465477 | L169: =L107-K107 -> 1018397 | M169: =M107-L107 -> -965677
A170: %change_10 | B170: =(B169/M106)*100 -> -39.32707549 | C170: =(C169/B107)*100 -> 45.39703768 | D170: 94.47846002 | E170: 37.29552204 | F170: 4.849057501 | G170: 3.374646381 | H170: -43.32510987 | I170: 5.802568097 | J170: =(J169/I107)*100 -> -20.50455946 | K170: =(K169/J107)*100 -> 4.635011871 | L170: =(L169/K107)*100 -> 9.691538103 | M170: =(M169/L107)*100 -> -8.377884288
B171: jan | C171: feb | D171: mar | E171: apr | F171: may | G171: jun | H171: jul | I171: aug | J171: sep | K171: oct | L171: nov | M171: dec | N171: ytd_total
A172: chg_prv_10-09 | B172: =B107-B106 -> 1038930 | C172: 1122311 | D172: 3056334 | E172: 3808229.564 | F172: 998764 | G172: 1918011 | H172: =H107-H106 -> -8191547 | I172: -6270360 | J172: -4486898 | K172: -6724319 | L172: -1557696 | M172: 2308785 | N172: =O107-O106 -> -12979455.44
A173: %chg_prv_10-09 | B173: =(B172/B106)*100 -> 26.18387308 | C173: 18.22714309 | D173: 27.53191137 | E173: 24.36605968 | F173: 5.15325182 | G173: 10.01585713 | H173: -40.68984527 | I173: =(I172/I106)*100 -> -33.17067937 | J173: =(J172/J106)*100 -> -30.88124141 | K173: =(K172/K106)*100 -> -39.02131818 | L173: =(L172/L106)*100 -> -11.90516989 | M173: =(M172/M106)*100 -> 27.97835444 | N173: =(N172/O106)*100 -> -7.748019744
B175: jan-dec | C175: feb-jan | D175: mar-feb | E175: apr-mar | F175: may-apr | G175: jun-may | H175: jul-jun | I175: aug-jul | J175: sep-aug | K175: oct-sep | L175: nov-oct | M175: dec-nov
A176: change_11 | B176: =B108-M107 -> -5317851 | C176: =C108-B108 -> -342948 | D176: 576775 | E176: 965671 | F176: 3507526 | G176: 1616486 | H176: 4308152 | I176: -1082752 | J176: -2070433 | K176: -2642535 | L176: -249241 | M176: 303165
A177: %change_11 | B177: =(B176/M107)*100 -> -50.35450355 | C177: =(C176/B108)*100 -> -6.541096713 | D177: 11.77085591 | E177: 17.63202643 | F177: 54.44379114 | G177: 16.24609372 | H177: 37.24685911 | I177: -6.820641431 | J177: -13.99708786 | K177: -20.77227668 | L177: -2.472894903 | M177: 3.084181318
B178: jan | C178: feb | D178: mar | E178: apr | F178: may | G178: jun | H178: jul | I178: aug | J178: sep | K178: oct | L178: nov | M178: dec | N178: ytd_total
A179: chg_prv_11-10 | B179: =B108-B107 -> 236220 | C179: -2379646 | D179: -8680593 | E179: -12994996 | F179: -10430004 | G179: -9501271 | H179: =H108-H107 -> 3934509 | I179: 2158923 | J179: 2678823 | K179: -429189 | L179: -1696827 | M179: -427985 | N179: =O108-O107 -> -37532036
A180: %chg_prv_11-10 | B180: =(B179/B107)*100 -> 4.718026889 | C180: -32.68891785 | D180: -61.31490725 | E180: -66.85539495 | F180: -51.17763973 | G180: -45.09864008 | H180: =(H179/H107)*100 -> 32.95198619 | I180: 17.08960393 | J180: 26.67452185 | K180: -4.084361548 | L180: -14.72109231 | M180: -4.05257165 | N180: =(N179/O107)*100 -> -24.28626189
B182: jan-dec | C182: feb-jan | D182: mar-feb | E182: apr-mar | F182: may-apr | G182: jun-may | H182: jul-jun | I182: aug-jul | J182: sep-aug | K182: oct-sep | L182: nov-oct | M182: dec-nov
A183: change_12 | B183: =B109-M108 -> -4563000 | C183: =C109-B109 -> 1381962 | D183: 3504980 | E183: 2028242 | F183: 4118608 | G183: 7710469 | H183: -7802283 | I183: =I109-H109 -> 2085197 | J183: -5461820 | K183: 1017146 | L183: -1068520 | M183: -2547960
A184: %change_12 | B184: =(B183/M108)*100 -> -45.0317976 | C184: =(C183/B109)*100 -> 24.81152062 | D184: 50.41829442 | E184: 19.39642617 | F184: 32.98838673 | G184: 46.43844793 | H184: -32.08953932 | I184: 12.6285125 | J184: -29.36933696 | K184: 7.743668823 | L184: -7.550128986 | M184: -19.47412763
B185: jan | C185: feb | D185: mar | E185: apr | F185: may | G185: jun | H185: jul | I185: aug | J185: sep | K185: oct | L185: nov | M185: dec | N185: ytd_total
A186: chg_prv_12-11 | B186: =B109-B108 -> 326866 | C186: 2051776 | D186: 4979981 | E186: 6042552 | F186: 6653634 | G186: 12747617 | H186: =H109-H108 -> 637182 | I186: 3805131 | J186: =J109-J108 -> 413744 | K186: 4073425 | L186: =L109-L108 -> 3254146 | M186: 403021 | N186: =O109-O108 -> 45389075
A187: %chg_prv_12-11 | B187: =(B186/B108)*100 -> 6.234362406 | C187: 41.87275741 | D187: 90.92864612 | E187: 93.79244489 | F187: 66.87070691 | G187: 110.2116858 | H187: 4.013836916 | I187: =(I186/I108)*100 -> 25.72445133 | J187: 3.252333401 | K187: =(K186/K108)*100 -> 40.41530855 | L187: 33.10532647 | M187: =(M186/M108)*100 -> 3.977374556 | N187: =(N186/O108)*100 -> 38.79137674
B189: jan-dec | C189: feb-jan | D189: mar-feb | E189: apr-mar | F189: may-apr | G189: jun-may | H189: jul-jun | I189: aug-jul | J189: sep-aug | K189: oct-sep | L189: nov-oct | M189: dec-nov
A190: change_13 | B190: =B110-M109 -> -2320337 | C190: =C110-B110 -> -400997 | D190: 2034865 | E190: 9623437 | F190: 2305592 | G190: 660208 | H190: -1004381 | I190: 4480600 | J190: -6707349 | K190: -3462043 | L190: -3338565 | M190: -404487
A191: %change_13 | B191: =(B190/M109)*100 -> -22.02323094 | C191: =(C190/B110)*100 -> -4.880966814 | D191: 26.03951589 | E191: 97.705899 | F191: 11.84004646 | G191: 3.03147781 | H191: -4.476124633 | I191: 20.90392908 | J191: -25.88226255 | K191: -18.0244341 | L191: -21.20335543 | M191: -3.260180169
B192: jan | C192: feb | D192: mar | E192: apr | F192: may | G192: jun | H192: jul | I192: aug | J192: sep | K192: oct | L192: nov | M192: dec | N192: ytd_total
A193: chg_prv_13-12 | B193: =B110-B109 -> 2645684 | C193: 862725 | D193: -607390 | E193: 6987805 | F193: 5174789 | G193: -1875472 | H193: 4922430 | I193: 7317833 | J193: 6072304 | K193: 1593115 | L193: -676930 | M193: 1466543 | N193: =O110-O109 -> 33883436
A194: %chg_prv_13-12 | B194: =(B193/B109)*100 -> 47.50017954 | C194: 12.41009166 | D194: -5.80857476 | E194: 55.96949593 | F194: 31.16660861 | G194: -7.713515708 | H194: 29.81155679 | I194: 39.34950313 | J194: 46.2292642 | K194: 11.25690089 | L194: -5.173794414 | M194: 13.91953633 | N194: =(N193/O109)*100 -> 20.86454035
B196: jan-dec | C196: feb-jan | D196: mar-feb | E196: apr-mar | F196: may-apr | G196: jun-may | H196: jul-jun | I196: aug-jul | J196: sep-aug | K196: oct-sep | L196: nov-oct | M196: dec-nov
A197: change_14 | B197: =B111-M110 -> -3534108.002 | C197: =C111-B111 -> -422041.9979 | D197: 4824533 | E197: -956476 | F197: 12984874 | G197: 2906932 | H197: -7869650 | I197: 335010 | J197: -2337900.368 | K197: 1140455.368 | L197: -5490711 | M197: -3178389
A198: %change_14 | B198: =(B197/M110)*100 -> -29.4450012 | C198: =(C197/B111)*100 -> -4.983788923 | D198: 59.95998883 | E198: -7.431371524 | F198: 108.9855217 | G198: 11.67480783 | H198: -28.3018661 | I198: 1.680388005 | J198: -11.53295523 | K198: 6.359330273 | L198: -28.78631534 | M198: -23.39920407
B199: jan | C199: feb | D199: mar | E199: apr | F199: may | G199: jun | H199: jul | I199: aug | J199: sep | K199: oct | L199: nov | M199: dec | N199: ytd_total
A200: chg_prv_14-13 | B200: =B111-B110 -> 252771.9979 | C200: 231727 | D200: 3021395 | E200: -7558518 | F200: 3120764 | G200: 5367488 | H200: =H111-H110 -> -1497781 | I200: -5643371 | J200: =J111-J110 -> -1273922.368 | K200: =K111-K110 -> 3328576 | L200: 1176430 | M200: =M111-M110 -> -1597472 | N200: =O111-O110 -> -1071912.37
A201: %chg_prv_14-13 | B201: =(B200/B110)*100 -> 3.076760508 | C201: 2.965336226 | D201: 30.67595441 | E201: -38.81571599 | F201: 14.32961554 | G201: 23.92074846 | H201: -6.987793554 | I201: =(I200/I110)*100 -> -21.77659309 | J201: -6.632421888 | K201: =(K200/K110)*100 -> 21.13991491 | L201: 9.482069279 | M201: =(M200/M110)*100 -> -13.30960031 | N201: =(N200/O110)*100 -> -0.546112045
B203: jan-dec | C203: feb-jan | D203: mar-feb | E203: apr-mar | F203: may-apr | G203: jun-may | H203: jul-jun | I203: aug-jul | J203: sep-aug | K203: oct-sep | L203: nov-oct | M203: dec-nov
A204: change_15
A205: %change_15
B206: jan | C206: feb | D206: mar | E206: apr | F206: may | G206: jun | H206: jul | I206: aug | J206: sep | K206: oct | L206: nov | M206: dec | N206: ytd_total
A207: chg_prv_15-14 | N207: =N112-N111 -> -195208755.6
A208: %chg_prv_15-14 | N208: =(N207/N111)*100 -> -100
A210: ecch_med_rp_r96 | B210: jan | C210: feb | D210: mar | E210: apr | F210: may | G210: jun | H210: jul | I210: aug | J210: sep | K210: oct | L210: nov | M210: dec | N210: ytd_avg_total
A211: 2003 | B211: 94411 | C211: 93468 | D211: 98761 | E211: 97687 | F211: 101609 | G211: 99465 | H211: 107014 | I211: 111440 | J211: 95936 | K211: 99572 | L211: 92189 | M211: 104135 | N211: =B212*B211+C212*C211+D212*D211+E212*E211+F212*F211+G211*G212+H211*H212+I211*I212+J211*J212+K212*K211+L212*L211+M212*M211 -> 100705.0452
B212: =(B2/$O$2) -> 0.04465270121 | C212: 0.06174200662 | D212: 0.07772877619 | E212: 0.08048511577 | F212: 0.09592061742 | G212: 0.1124586549 | H212: 0.1108048512 | I212: 0.1163175303 | J212: 0.098676957 | K212: 0.08765159868 | L212: 0.04961411246 | M212: 0.06394707828 | N212: =SUM(B212:M212) -> 1
A213: 2004 | B213: 105318 | C213: 107214 | D213: 98435 | E213: 98184 | F213: 105000 | G213: 106488 | H213: 106921 | I213: 112997 | J213: 103580 | K213: 102896 | L213: 103977 | M213: 108356 | N213: =B214*B213+C214*C213+D214*D213+E214*E213+F214*F213+G214*G213+H214*H213+I214*I213+J214*J213+K214*K213+L214*L213+M214*M213 -> 104955.6659
B214: =B3/$O$3 -> 0.03154929577 | C214: 0.06028169014 | D214: 0.07943661972 | E214: 0.1076056338 | F214: 0.09802816901 | G214: 0.1250704225 | H214: 0.1070422535 | I214: 0.101971831 | J214: 0.08169014085 | K214: 0.08169014085 | L214: 0.06253521127 | M214: 0.06309859155 | N214: =SUM(B214:M214) -> 1
A215: 2004 | B215: 105318 | C215: 107214 | D215: 98435 | E215: 98184 | F215: 105000 | G215: 106488 | H215: 106921 | I215: 112997 | J215: 103580 | K215: 102896 | L215: 103977 | M215: 108356 | N215: =B216*B215+C216*C215+D216*D215+E216*E215+F216*F215+G216*G215+H216*H215+I216*I215+J216*J215+K216*K215+L216*L215+M216*M215 -> 104955.6659
B216: =B3/$N$3 -> 0.03154929577 | C216: 0.06028169014 | D216: 0.07943661972 | E216: 0.1076056338 | F216: 0.09802816901 | G216: 0.1250704225 | H216: 0.1070422535 | I216: 0.101971831 | J216: 0.08169014085 | K216: 0.08169014085 | L216: 0.06253521127 | M216: 0.06309859155 | N216: =SUM(B216:M216) -> 1
A217: 2005 | B217: 107350 | C217: 102376 | D217: 99047 | E217: 99155 | F217: 101959 | G217: 106466 | H217: 101709 | I217: 107685 | J217: 109840 | K217: 111351 | L217: 109402 | M217: 108200 | N217: =B218*B217+C218*C217+D218*D217+E218*E217+F218*F217+G218*G217+H218*H217+I218*I217+J218*J217+K218*K217+L218*L217+M218*M217 -> 105210.0595
B218: =B4/$O$4 -> 0.03292618163 | C218: 0.05257567711 | D218: 0.07647371216 | E218: 0.08921933086 | F218: 0.09506107276 | G218: 0.1386086033 | H218: 0.1115241636 | I218: 0.116834838 | J218: 0.09824747743 | K218: 0.07275624004 | L218: 0.0653212958 | M218: 0.05045140733 | N218: =SUM(B218:M218) -> 1
A219: 2005 | B219: 107350 | C219: 102376 | D219: 99047 | E219: 99155 | F219: 101959 | G219: 106466 | H219: 101709 | I219: 107685 | J219: 109840 | K219: 111351 | L219: 109402 | M219: 108200 | N219: =B220*B219+C220*C219+D220*D219+E220*E219+F220*F219+G220*G219+H220*H219+I220*I219+J220*J219+K220*K219+L220*L219+M220*M219 -> 105210.0595
B220: =B4/$N$4 -> 0.03292618163 | C220: 0.05257567711 | D220: 0.07647371216 | E220: 0.08921933086 | F220: 0.09506107276 | G220: 0.1386086033 | H220: 0.1115241636 | I220: 0.116834838 | J220: 0.09824747743 | K220: 0.07275624004 | L220: 0.0653212958 | M220: 0.05045140733 | N220: =SUM(B220:M220) -> 1
A221: 2006 | B221: 107438 | C221: 107572 | D221: 100612 | E221: 102675 | F221: 100938 | G221: 109056 | H221: 112655 | I221: 108578 | J221: 118740 | K221: 104226 | L221: 105547 | M221: 105440 | N221: =B222*B221+C222*C221+D222*D221+E222*E221+F222*F221+G222*G221+H222*H221+I222*I221+J222*J221+K222*K221+L222*L221+M222*M221 -> 106980.0573
B222: =B5/$O$5 -> 0.04451864218 | C222: 0.05620478575 | D222: 0.08514190317 | E222: 0.09070673344 | F222: 0.1185308848 | G222: 0.122982749 | H222: 0.10294936 | I222: 0.1074012243 | J222: 0.08124652198 | K222: 0.06956037841 | L222: 0.05731775181 | M222: 0.06343906511 | N222: =SUM(B222:M222) -> 1
A223: 2006 | B223: 107438 | C223: 107572 | D223: 100612 | E223: 102675 | F223: 100938 | G223: 109056 | H223: 112655 | I223: 108578 | J223: 118740 | K223: 104226 | L223: 105547 | M223: 105440 | N223: =B224*B223+C224*C223+D224*D223+E224*E223+F223*F224+G224*G223+H224*H223+I224*I223+J224*J223+K224*K223+L224*L223+M224*M223 -> 106980.0573
B224: =B5/$N$5 -> 0.04451864218 | C224: 0.05620478575 | D224: 0.08514190317 | E224: 0.09070673344 | F224: 0.1185308848 | G224: 0.122982749 | H224: 0.10294936 | I224: 0.1074012243 | J224: 0.08124652198 | K224: 0.06956037841 | L224: 0.05731775181 | M224: 0.06343906511 | N224: =SUM(B224:M224) -> 1
... 192 more rows

Sheet graphs
